Workbook

Sheet Pendientes old (hidden)
K1: DWG | M1: Fuerza
A2: Sitio | B2: Nodo | C2: Emplazamiento | D2: Sprint | E2: Contratista | F2: Plan | G2: Mesa Ingeniería | H2: Epum | I2: Adjudicacion | J2: Fecha de ingreso | K2: BPM | L2: MAIL | M2: BPM | N2: MAIL | O2: Observaciones | P2: Fecha devolucion | Q2: Antena | R2: observaciones | S2: Energia | T2: Definicion | U2: Fuego / SOLPE | V2: Rebote Logistica x antena | W2: ESTADO | X2: Asignado | Y2: Adelanto | Z2: V
A3: BM129 | B3: CBM129 | C3: ARBA13484 | E3: Ericsson | F3: Sitios Nuevos | G3: Completed | H3: 1279211-1 | Q3: RAN 2 - Ericsson Mudanza del sitio BM029 | R3: ok stock | S3: Sin planilla | T3: 2019-03-12 | U3: 7000079199 | W3: FIN
A4: BM141 | B4: CBM141 | C4: ARBA0853 | D4: Ericsson | E4: Sitios Nuevos | F4: Active | H4: 1317143-1 | I4: 234194 | J4: 2019-04-25 | T4: 2019-04-26 | U4: 7000079918 | W4: FIN | X4: Barbara
A5: QN084 | B5: CQN084 | C5: ARNQ0565 | D5: SPRINT BK | E5: Tesur | F5: SITIOS NUEVOS | G5: Active | T5: 0 | W5: A REASIGNAR CONTRATA | X5: NA
A6: AC008 | B6: FAC008 | C6: ARSA0032 | D6: SPRINT BK | E6: CIS SRL | F6: RAN 1 | G6: On Hold | Q6: ATD4516R8 | R6: falta hacer 3500 | T6: 2019-04-25 | U6: 7000079898 | W6: FIN | X6: Rodrigo
A7: KS111 | B7: FKS111 | C7: ARBA0928 | D7: SPRINT 6 | E7: Sidaco | F7: AMBA | G7: 0 | H7: 1232430-1 | W7: TO DO
A8: KS126 | B8: FKS126 | C8: ARBA0976 | D8: SPRINT 6 | E8: Sidaco | F8: AMBA | G8: 0 | H8: 1232432-1 | W8: TO DO
A9: KS183 | B9: FKS183 | E9: Sidaco | F9: AMBA | G9: Sin HW 3500 | H9: 1232429-1 | W9: TO DO
A10: OC001 | B10: FOC001 | C10: ARCT0016 | D10: SPRINT BK | E10: CIS SRL | F10: RAN 1 | G10: On Hold | Q10: antenas TDD ingresadas / faltan las RRUS | R10: falta hacer 3500 | W10: TO DO
A11: QC006 | B11: FQC006 | C11: ARNQ0047 | D11: Sprint 10 | E11: Huawei | F11: R1 | G11: On Hold | R11: Falta ingreso de las RRUs + Antenas TDD | T11: 0 | U11: 0 | W11: TO DO
A12: XC180 | B12: FXC180 | C12: ARCO0359 | D12: SPRINT BK | E12: CIS SRL | F12: RAN 1 | G12: On Hold | Q12: antenas TDD ingresadas / faltan las RRUS | R12: falta hacer 3500 | W12: TO DO
A13: BM129 | B13: GBM129 | C13: ARBA13484 | E13: Ericsson | F13: Sitios Nuevos | G13: Completed | H13: 1279210-1 | Q13: RAN 2 - Ericsson Mudanza del sitio BM029 | R13: ok stock | S13: Sin planilla | T13: 2019-03-12 | U13: 7000079199 | W13: FIN
A14: GC310 | B14: GGC310 | C14: ARSE0288 | E14: CIS SRL | F14: Sitios Nuevos | G14: Completed | H14: 1104316-1 | Q14: ATR4518R6 | R14: ok stock | S14: OK energia | T14: 2019-03-18 | U14: 7000079310 | W14: FIN
A15: SR319 | B15: GSR319 | C15: ARSF1764 | E15: Sidaco | F15: Sitios Nuevos | G15: Completed | H15: 916500-1 | Q15: ODV-065R16M18JJG / 4000084591 | R15: ok stock | T15: 2019-03-18 | U15: 7000079309 | W15: FIN
A16: XC349 | B16: GXC349 | C16: ARCO1905 | D16: Sprint 14/15 | E16: CIS SRL | F16: SITIOS NUEVOS | G16: In Planning | Q16: Mudanza del GXC049. Configuración (3x2). ATR4518R6 (usar puerto libre de alta para 2G diplexado con 3G mudanza del XC049 - sitio NO RAN | R16: Faltan los planos | S16: fuerza OK | T16: 2019-04-11 | U16: 7000079667/7000079668 | W16: FIN | X16: Barbara
A17: ZW012 | B17: GZW012 | W17: TO DO
A18: KS323 | B18: KS323 | W18: TO DO
A19: KS348 | B19: KS348 | W19: TO DO
A20: KS463 | B20: KS463 | W20: TO DO
A21: KS496 | B21: KS496 | W21: TO DO
A22: AN003 | B22: LAN003 | D22: S16 | F22: 0 | G22: 0 | Q22: ASI4517R3V06 ( Grande) | W22: SIN STOCK
A23: BB482 | B23: LBB482 | E23: Guzman Nacich | F23: RAN 1 | G23: Completed | T23: 2019-03-29 | U23: 7000079247 | W23: FIN
A24: BM129 | B24: LBM129 | C24: ARBA13484 | E24: Ericsson | F24: Sitios Nuevos | G24: Completed | H24: 1279212-1 | Q24: RAN 2 - Ericsson Mudanza del sitio BM029 | R24: ok stock | S24: Sin planilla | T24: 2019-03-12 | U24: 7000079199 | W24: FIN
A25: BM141 | B25: LBM141 | C25: ARBA0853 | D25: Ericsson | E25: Sitios Nuevos | F25: Active | H25: 1317142-1 | I25: 234193 | J25: 2019-04-25 | T25: 2019-04-26 | U25: 7000079918 | W25: FIN | X25: Barbara
A26: BM795 | B26: LBM795 | C26: ARBA13155 | D26: Guzmán Nacich | E26: Sitios Nuevos | F26: Active | H26: 944039-1 | I26: 210150 | J26: 2019-04-25 | W26: TO DO
A27: BN901 | B27: LBN901 | C27: ARBA13471 | E27: Tesur | F27: SITIOS NUEVOS | G27: Active | Q27: Tribanda trisector | R27: sin stock | S27: ok ingenieria / falta actualizar ingenieria fuerza | T27: 2019-03-25 | U27: 7000079430 | W27: FIN
A28: BO013 | B28: LBO013 | C28: ARBA13267 | D28: Ericsson | E28: Sitios Nuevos | F28: Active | H28: 1115549-1 | I28: 235504 | J28: 2019-04-25 | W28: TO DO
A29: BO018 | B29: LBO018 | C29: 0 | E29: Sidaco | F29: SITIO NUEVO | G29: Planificar Ing | H29: 1331410-1 | W29: TO DO
A30: BS144 | B30: LBS144 | G30: Active | T30: 2019-03-06 | U30: 7000079131 | W30: FIN
A31: IC002 | B31: LC002 | E31: Guzman Nacich | F31: RAN 1 | T31: 2019-03-29 | U31: 7000079503 | W31: FIN
A32: CE017 | B32: LCE017 | E32: MULTIRADIO | F32: Porticos | T32: 2019-04-05 | U32: 7000079586 | W32: FIN | X32: Ricky | Y32: SI
A33: CE018 | B33: LCE018 | E33: MULTIRADIO | F33: Porticos | T33: 2019-04-05 | U33: 7000079586 | W33: FIN | X33: Ricky | Y33: SI
A34: CM505 | B34: LCM505 | C34: ARCF1097 | D34: Sprint 10 | E34: PEM | F34: Sitios Nuevos | G34: Active | R34: ok planos | S34: ok fuerza | T34: 2019-04-11 | U34: 7000079696 | W34: FIN | X34: LUCRECIA
A35: CS352 | B35: LCS352 | E35: TELXIUS | G35: Active | Q35: "Antena a definir por RDA" | R35: no contamos con ninguna definicion para emitir la SOLPE | T35: 2019-04-10 | U35: 69396 /7000079681 | W35: FIN | X35: Lucrecia | Y35: SI
A36: CS546 | B36: LCS546 | D36: S11 | E36: PEM | G36: Completed | S36: falta ingenieria / OK fuerza | T36: 2019-04-08 | U36: stock contratista | W36: FIN
A37: CS817 | B37: LCS817 | C37: ARCF9072 | D37: S12 | E37: Sidaco | F37: Sitios Nuevos | G37: 0 | H37: 1323609-1 | W37: TO DO
A38: CU514 | B38: LCU514 | C38: ARCF9849 | D38: SPRINT 11 | E38: PEM | F38: Sitios Nuevos | G38: Active | R38: ok planos | S38: ok fuerza | T38: 2019-04-11 | U38: 7000079697 | W38: FIN | X38: LUCRECIA
A39: FE047 | B39: LFE047 | C39: ARSL4836 | D39: BK | E39: CIS SRL | F39: Sitios Nuevos | G39: Completed | T39: 2019-04-10 | U39: 7000078847/7000079682 | W39: FIN | X39: Rodrigo
A40: FE048 | B40: LFE048 | C40: ARSL4838 | D40: BK | E40: CIS SRL | F40: Sitios Nuevos | G40: Completed | T40: 2019-04-10 | U40: 7000078846/7000079682 | W40: FIN | X40: Rodrigo
A41: FE049 | B41: LFE049 | C41: ARSL4830 | D41: BK | E41: CIS SRL | F41: Sitios Nuevos | G41: Completed | T41: 2019-04-10 | U41: 7000078848/7000079682 | W41: FIN | X41: Rodrigo
A42: FE052 | B42: LFE052 | C42: ARSL4839 | D42: BK | E42: CIS SRL | F42: Sitios Nuevos | G42: Completed | T42: 2019-04-10 | U42: 7000078849/7000079682 | W42: FIN | X42: Rodrigo
A43: GC310 | B43: LGC310 | C43: ARSE0288 | E43: CIS SRL | F43: Sitios Nuevos | G43: Completed | H43: 1108369-1 | Q43: ATR4518R6 | R43: ok stock | S43: OK energia | T43: 2019-03-18 | U43: 7000079310 | W43: FIN
A44: IC009 | B44: LIC009 | E44: Guzman Nacich | F44: RAN 1 | T44: 2019-03-29 | U44: 7000079505 | W44: FIN
A45: IC024 | B45: LIC024 | E45: Guzman Nacich | F45: RAN 1 | G45: Completed | T45: 2019-04-05 | U45: 7000079596 | W45: FIN | X45: Carolina H - Ricky | Y45: SI
A46: IN001 | B46: LIN001 | E46: Guzman Nacich | F46: RAN 1 | R46: Planos OK enviados 12-4-19 | T46: 2019-03-29 | U46: 7000079506 | W46: FIN | Y46: SI
A47: JC201 | B47: LJC201 | C47: ARSJ4867 | E47: PEM | F47: Sitios Nuevos | G47: Completed | H47: 1263061-1 | Q47: Terminada | R47: ok stock | T47: 2019-03-11 | U47: 7000079191 | W47: FIN
A48: JS015 | B48: LJS015 | C48: ARSJ0030 | D48: SPRINT 5 | E48: Sidaco | F48: R1 - NO RAN | R48: sin ingenieria falta DWG | S48: falta fuerza | T48: 2019-04-05 | U48: 7000079600 | W48: FIN | X48: Lucrecia | Y48: SI
A49: JS017 | B49: LJS017 | C49: ARSJ0004 | D49: SPRINT 5 | E49: Sidaco | F49: R1 - NO RAN | R49: verificar ingenieria | S49: falta fuerza | T49: 2019-04-05 | U49: 7000079589 | W49: FIN | X49: Lucrecia | Y49: SI
A50: JS037 | B50: LJS037 | C50: ARSJ0072 | D50: SPRINT 5 | E50: Sidaco | F50: R1 - NO RAN | R50: sin ingenieria falta DWG | S50: falta fuerza | T50: 2019-04-05 | U50: 7000079601 | W50: FIN | X50: Lucrecia | Y50: SI
A51: KS119 | B51: LKS119 | E51: Sidaco | F51: Sitios Nuevos | G51: Completed | H51: 1247967-1 | R51: Sitio Finalizado | T51: FIN | U51: Finalizado 2018 | W51: Finalizado 2018
A52: KS323 | B52: LKS323
A53: KS348 | B53: LKS348
A54: KS378 | B54: LKS378 | C54: ARBA13485 | D54: S12 | E54: Sidaco | F54: SITIO NUEVO | G54: Completed | T54: 2019-04-04 | U54: 7000079378 | W54: FIN
A55: KS463 | B55: LKS463
A56: KS496 | B56: LKS496
A57: KS702 | B57: LKS702 | C57: ARBA13486 | D57: S12 | E57: Sidaco | F57: SITIO NUEVO | G57: Active | T57: 2019-04-04 | U57: 7000079377 | W57: FIN
A58: KS703 | B58: LKS703 | E58: Sidaco | G58: Active | T58: 2019-04-04 | U58: 7000079390 | W58: FIN | Y58: SI
A59: KS704 | B59: LKS704 | E59: Sidaco | G59: Active | T59: 2019-04-04 | U59: 7000079379 | W59: FIN | Y59: SI
A60: KS706 | B60: LKS706 | C60: ARBA13495 | D60: S12 | E60: Sidaco | F60: SITIO NUEVO | G60: Completed | T60: 2019-04-04 | U60: 7000079376 | W60: FIN
A61: LP148 | B61: LLP148 | C61: ARBA13128 | E61: Ericsson | F61: Sitios Nuevos | G61: Completed | H61: 916521-1 | Q61: ODV065R16M18JG=4000084568 | R61: ok stock | S61: Validar planilla 2017 | T61: 2019-03-22 | U61: 7000079403 | W61: FIN | X61: Rodrigo
A62: M0005 | B62: LM0005 | C62: ARME1211 | D62: SPRINT BK | E62: PEM | F62: SITIOS NUEVOS | G62: Active | T62: 2019-04-01 | U62: 7000079520/7000079521 | W62: FIN | X62: Barbara
A63: MC004 | B63: LMC004 | E63: Sidaco | F63: RAN 1 | T63: 2019-03-29 | U63: 7000079482 | W63: FIN
A64: MC017 | B64: LMC017 | E64: Sidaco | F64: RAN 1 | T64: 2019-03-29 | U64: 7000079483 | W64: FIN
A65: MC028 | B65: LMC028 | E65: Sidaco | F65: RAN 1 | T65: 2019-03-29 | U65: 7000079485 | W65: FIN
A66: MC038 | B66: LMC038 | E66: Sidaco | F66: RAN 1 | T66: 2019-03-29 | U66: 7000079484 | W66: FIN
A67: MC215 | B67: LMC215 | C67: ARME1202 | D67: S11 | E67: PEM | F67: Sitios Nuevos | G67: 0 | H67: 1148289-1 | T67: 2019-04-24 | U67: 7000079885 | W67: FIN | X67: Barbara
A68: QCM12 | B68: LQCM12 | R68: 4 RRU’s 3971 de B4 (4T4R | T68: 2019-04-24 | U68: 7000079869 | W68: FIN | X68: Ricky
A69: QN084 | B69: LQN084 | C69: ARNQ0565 | D69: SPRINT BK | E69: Tesur | F69: SITIOS NUEVOS | G69: Active | T69: 0 | W69: A REASIGNAR CONTRATA | X69: NA
A70: QW018 | B70: LQW018 | C70: ARNQ0037 | D70: SPRINT BK | E70: PEM | F70: Obligaciones de pliego | G70: Completed | T70: 2019-04-04 | U70: 7000079570 / 7000079573 | W70: FIN | X70: RICKY
A71: RN015 | B71: LRN015 | E71: Huawei | F71: RAN R1 | G71: Active | R71: Adelanto Mario | T71: 2019-04-12 | U71: 69439 | W71: FIN | X71: Ricky
A72: RN078 | B72: LRN078 | C72: ARRN0460 | E72: Sidaco | F72: Sitios Nuevos | G72: Completed | H72: 888896-1 | Q72: RRZZ (AQU4518R24+ AAU3910) | R72: ok stock | S72: planilla ok 2019 | T72: 2019-03-12 | U72: 7000079204 | W72: FIN
A73: RN344 | B73: LRN344 | C73: ARRN0461 | E73: Sidaco | F73: Sitios Nuevos | G73: Completed | H73: 651468-1 | Q73: Hexabanda Chica | R73: ok stock | S73: Validar planilla 2016 | T73: 2019-03-12 | U73: 7000079206 | W73: FIN
A74: SC044 | B74: LSC044 | E74: Sidaco | F74: RAN R2 | G74: Completed | R74: ok stock | T74: 2019-03-13 | U74: 70000079244 | W74: FIN
A75: SR319 | B75: LSR319 | C75: ARSF1764 | E75: Sidaco | F75: Sitios Nuevos | G75: Completed | H75: 916499-1 | Q75: ODV-065R16M18JJG / 4000084591 | R75: ok stock | T75: 2019-03-18 | U75: 7000079309 | W75: FIN
A76: SR609 | B76: LSR609 | C76: ARSF1544 | D76: Sprint 10 | E76: Ericsson | F76: Sitios Nuevos | G76: Active | H76: 540476-1 | Q76: ATR4518R6 | R76: Falta definicion de RRU, Energia desactualizada , sin planilla de materiales / verificar tipo de antena | S76: falta fuerza | T76: 0 | W76: INGENIERIA FUERZA + DWG
A77: TE010 | B77: LTE010
A78: UE205 | B78: LUE205 | C78: ARCB0525 | D78: Sprint 10 | E78: PEM | F78: Sitios Nuevos | G78: Active | T78: 2019-04-10 | U78: 7000079691 | W78: FIN | X78: Barbara
A79: UE207 | B79: LUE207 | C79: ARCB0526 | D79: Sprint 10 | E79: PEM | F79: Sitios Nuevos | G79: Active | T79: 2019-04-10 | U79: 7000079691 | W79: FIN | X79: Barbara
A80: XC349 | B80: LXC349 | C80: ARCO1905 | D80: Sprint 14/15 | E80: CIS SRL | F80: SITIOS NUEVOS | G80: Active | Q80: Mudanza del GXC049. Configuración (3x2). ATR4518R6 (usar puerto libre de alta para 2G diplexado con 3G mudanza del XC049 - sitio NO RAN | R80: Faltan los planos | S80: fuerza OK | T80: 2019-04-11 | U80: 7000079667/7000079668 | W80: FIN | X80: Barbara
A81: XC615 | B81: LXC615 | C81: ARCO1904 | E81: CIS SRL | F81: SITIOS NUEVOS | G81: Active | Q81: ATR4518R6 | T81: 2019-03-29 | U81: 7000079497 / 7000079498 | W81: FIN | X81: Lucre
A82: YE002 | B82: LYE002 | D82: S16 | F82: 0 | G82: 0 | W82: TO DO
A83: ZW012 | B83: LZW012
A84: AC301 | B84: MAC301 | E84: CIS SRL | F84: RAN 1 | G84: Completed | T84: 2019-04-09 | U84: 7000079637 | W84: FIN | X84: RICKY | Y84: SI
A85: AN003 | B85: MAN003 | D85: S16 | F85: 0 | G85: 0 | W85: TO DO
A86: AW008 | B86: MAW008 | C86: ARSA0384 | E86: CIS SRL | F86: Sitios Nuevos | G86: Completed | H86: 1239123-1 | Q86: AQU4518R24 | R86: ok stock | S86: RDA debe confirmar antenas | T86: 2019-03-18 | U86: 700079311 | W86: FIN | X86: Lucrecia
A87: BA034 | B87: MBA034 | C87: ARBA13153 | D87: BK | E87: Ericsson | F87: Sitios Nuevos | G87: Completed | R87: planos ok 12-4-19 | S87: Energia OK | T87: 2019-04-12 | U87: 7000077608 | W87: FIN | X87: Barbara
A88: BB475 | B88: MBB475 | E88: Guzman Nacich | F88: RAN 1 | T88: 2019-03-29 | U88: 7000079459/7000079508 | W88: FIN
A89: BB482 | B89: MBB482 | E89: Guzman Nacich | F89: RAN 1 | G89: Completed | T89: 2019-03-29 | U89: 7000079247 | W89: FIN
A90: BM129 | B90: MBM129 | C90: ARBA13484 | E90: Ericsson | F90: Sitios Nuevos | G90: Completed | H90: 1279214-1 | Q90: RAN 2 - Ericsson Mudanza del sitio BM029 | R90: ok stock | S90: Sin planilla | T90: 2019-03-12 | U90: 7000079199 | W90: FIN
A91: BM795 | B91: MBM795 | C91: ARBA13155 | D91: Guzmán Nacich | E91: Sitios Nuevos | F91: Active | H91: 944184-1 | I91: 210149 | J91: 2019-04-25 | W91: TO DO
A92: BN131 | B92: MBN131 | C92: ARBA4819 | D92: Sprint 9 | E92: Sidaco | F92: AMBA | G92: On Hold | Q92: ODI2-065R16MJJ-GQ ( Hexa grande) | R92: Sin Stock | W92: SIN STOCK
A93: BN163 | B93: MBN163 | C93: ARBA6904 | D93: SPRINT 11 | E93: Sidaco | F93: AMBA | G93: Active | Q93: Cambia AIR32 x Hexabanda | R93: a verificar estructura por cambio de antena AIR32 x HEXA | T93: 2019-04-09 | U93: 7000079657 | W93: FIN | X93: Lucrecia
A94: BN169 | B94: MBN169 | C94: ARBA4733 | E94: Sidaco | F94: AMBA | G94: Completed | Q94: ODI-065R15M18JJ-G= 2000018373 | S94: ok fuerza | T94: 2019-03-25 | U94: 7000079422 | W94: FIN
A95: BN273 | B95: MBN273 | C95: ARBA7224 | D95: SPRINT 11 | E95: Sidaco | F95: AMBA | G95: Active | Q95: ODV-065R16M18J-G | T95: 2019-04-01 | U95: 7000079541 | W95: FIN | X95: Lucre
A96: BN327 | B96: MBN327 | C96: ARBA8335 | D96: Sprint 9 | E96: Sidaco | F96: AMBA | G96: Active | T96: 2019-04-08 | U96: 7000079626 | W96: FIN | X96: Rodrigo
A97: BO013 | B97: MBO013 | C97: ARBA13267 | D97: Ericsson | E97: Sitios Nuevos | F97: Active | H97: 1100978-1 | I97: 235503 | J97: 2019-04-25 | W97: TO DO
A98: BO018 | B98: MBO018 | C98: 0 | E98: Sidaco | F98: SITIO NUEVO | G98: Planificar Ing | H98: 1331411-1 | W98: TO DO
A99: BO133 | B99: MBO133 | C99: ARBA3652 | E99: CIS SRL | F99: AMBA | G99: Planificar Ing | H99: 1254836-1 | I99: 231830 | W99: TO DO
A100: BO153 | B100: MBO153 | C100: ARBA4770 | D100: CIS SRL | E100: AMBA | G100: Active | Q100: ASI4517R3V06 | S100: Energia OK | T100: 2019-04-22 | U100: 7000079826 | W100: FIN | X100: lucreia
A101: BO181 | B101: MBO181 | C101: ARBA4529 | D101: Sprint 12/13 | E101: CIS SRL | F101: AMBA | G101: 0 | H101: 1254698-1 | T101: 2019-04-23 | U101: 7000079838 | W101: FIN | X101: Lucrecia
A102: BO185 | B102: MBO185
A103: BO192 | B103: MBO192 | C103: ARBA4299 | D103: Sprint 12/13 | E103: CIS SRL | F103: AMBA | G103: 0 | H103: 1254810-1 | R103: Se remplazó la ODV-065R14M17JJ-G COMBA TRIBANDA por CE_ANTP_TB_2H1L_SBNHH1D65A. | T103: 2019-04-24 | U103: 7000079886/7000079826 | W103: FIN | X103: Barbara
A104: BO206 | B104: MBO206 | C104: ARBA5403 | D104: Sprint 12/13 | E104: CIS SRL | F104: AMBA | G104: 0 | H104: 1254699-1 | T104: 2019-04-25 | U104: 7000079900 | W104: FIN | X104: Barbara
A105: BO341 | B105: MBO341 | C105: ARBA6840 | D105: Sprint 9 | E105: Sidaco | F105: AMBA | G105: Active | T105: 2019-04-08 | U105: 7000079624 | W105: FIN | X105: Barbara
A106: BS036 | B106: MBS036 | E106: Sidaco | F106: AMBA | G106: On Hold | Q106: Requiere antena AIR32, sin stock./ cambia por ASI4517R3v06 | R106: No Liberado es operadora | S106: OK | T106: 2019-04-22 | U106: 7000079835 | W106: FIN | X106: Lucrecia
A107: BS114 | B107: MBS114 | C107: ARBA5330 | D107: Sprint 9 | E107: Sidaco | F107: AMBA | G107: Active | T107: 2019-04-10 | U107: 7000079677 | W107: FIN | X107: Rodrigo
A108: BS129 | B108: MBS129 | D108: SPRINT 11 | E108: Sidaco | F108: AMBA | G108: Active | Q108: ODI2-065R16MJJ-GQ ( Hexa grande) | R108: Planos OK / TO DO / Hexa que ingresan 140 unidades el 15 de Abril | S108: fuerza ok | T108: 1 | W108: SIN STOCK
A109: BS136 | B109: MBS136 | E109: Sidaco | F109: AMBA | G109: Active | Q109: ODI2-065R16MJJ-GQ ( Hexa grande) | R109: mc condicionante se cierra semana 22 de abril | S109: OK | T109: 0 | W109: SIN STOCK
A110: BS155 | B110: MBS155 | C110: ARBA6909 | D110: SPRINT 9 | E110: Tesur | F110: AMBA | G110: On Hold | Q110: ODI2-065R16MJJ-GQ ( Hexa grande) | R110: Sin Stock | S110: ok fuerza | T110: 0 | W110: SIN STOCK | X110: NA
A111: BS160 | B111: MBS160 | C111: ARBA6393 | D111: S12 | E111: Sidaco | F111: AMBA | G111: Completed | Q111: ODI2-065R16MJJ-GQ ( Hexa grande) | R111: TO DO / Hexa que ingresan 140 unidades el 15 de Abril | S111: se conecta a planta existente | W111: SIN STOCK
A112: BS169 | B112: MBS169 | D112: SPRINT 11 | E112: Sidaco | F112: AMBA | G112: On Hold | H112: 1254650-1 | Q112: TNA770A00RI | R112: sin stock | T112: 0 | W112: SIN STOCK
A113: BS229 | B113: MBS229 | C113: ARBA9890 | D113: SPRINT 11 | E113: Sidaco | F113: AMBA | G113: Active | P113: 2019-04-17 | Q113: TNA770A00RI | R113: ANTENA TNA770A00RI sin stock | S113: Energia OK | T113: 1 | W113: SIN STOCK
B114: MC010 | D114: CIS SRL | J114: 2019-04-25 | T114: 2019-04-25 | U114: 7000079922 | W114: FIN | X114: LUCRECIA
A115: CE017 | B115: MCE017 | E115: MULTIRADIO | T115: 2019-04-01 | U115: 7000079523 | W115: FIN | X115: Ricky | Y115: SI
A116: CE018 | B116: MCE018 | E116: MULTIRADIO | F116: Porticos | T116: 2019-04-05 | U116: 7000079586 | W116: FIN | X116: Ricky | Y116: SI
A117: CN349 | B117: MCN349 | C117: ARCF8639 | D117: S12 | E117: MULTIRADIO | F117: AMBA | G117: Active | Q117: ODV-065R14M17JJ-G | R117: sin stock | T117: 0 | W117: SIN STOCK | X117: NA
A118: CN423 | B118: MCN423 | C118: ARCF8852 | D118: Sprint 12/13 | E118: MULTIRADIO | F118: AMBA | G118: Active | T118: 0 | W118: TO DO | X118: NA
A119: CS111 | B119: MCS111 | D119: Sprint 12/13 | E119: Tesur | F119: AMBA | G119: On Hold | Q119: ODI2-065R16MJJ-GQ ( Hexa grande) | R119: sin stock | T119: 0 | W119: SIN STOCK | X119: NA
A120: CS124 | B120: MCS124 | C120: ARCF9268 | D120: Sprint 12/13 | E120: CIS SRL | F120: AMBA | G120: Active | T120: 0 | W120: TO DO | X120: NA
A121: CS205 | B121: MCS205 | E121: Sidaco | F121: Sitios Nuevos | G121: Active | Q121: ODI2-065R16MJJ-GQ ( Hexa grande) | R121: planos recibidos 12-4-19 | S121: Energia OK | T121: 0 | W121: SIN STOCK
A122: CS256 | B122: MCS256 | C122: ARCF8724 | D122: Sprint 12/13 | E122: Sidaco | F122: AMBA | G122: Active | T122: 0 | W122: TO DO | X122: NA
A123: CS293 | B123: MCS293 | C123: ARCF8684 | D123: Sprint 12/13 | E123: Sidaco | F123: AMBA | G123: Active | T123: 0 | W123: TO DO | X123: NA
A124: CS296 | B124: MCS296 | C124: ARCF8685 | D124: S12 | E124: Sidaco | F124: AMBA | G124: Active | T124: 0 | W124: TO DO | X124: NA
A125: CS311 | B125: MCS311 | C125: ARCF8564 | D125: SPRINT 9 | E125: Tesur | F125: AMBA | G125: On Hold | Q125: ODI2-065R16MJJ-GQ ( Hexa grande) | R125: sin stock | S125: falta fuerza | T125: 0 | W125: SIN STOCK | X125: NA
A126: CS352 | B126: MCS352 | E126: TELXIUS | G126: Active | Q126: "Antena a definir por RDA" | R126: no contamos con ninguna definicion para emitir la SOLPE | T126: 2019-04-10 | U126: 69396 /7000079681 | W126: FIN | X126: Lucrecia | Y126: SI
A127: HC020 | B127: MHC020
A128: IC021 | B128: MIC021 | E128: Guzman Nacich | F128: RAN 1 | G128: Completed | T128: 2019-04-05 | U128: USA HW DEL IC004 | W128: FIN | X128: Carolina H - Ricky | Y128: SI
A129: IC024 | B129: MIC024 | E129: Guzman Nacich | F129: RAN 1 | G129: Completed | T129: 2019-04-05 | U129: 7000079596 | W129: FIN | X129: Carolina H - Ricky | Y129: SI
A130: IE001 | B130: MIE001 | E130: Guzman Nacich | F130: RAN 1 | T130: 2019-04-05 | U130: 7000079597 | W130: FIN | X130: Carolina H - Ricky | Y130: SI
A131: IN004 | B131: MIN004 | E131: Guzman Nacich | F131: RAN 1 | G131: Active | T131: 2019-03-29 | U131: 7000079507 | W131: FIN
A132: JC004 | B132: MJC004 | C132: ARSJ4749 | E132: Sidaco | F132: RAN R1 | G132: Completed | H132: 1059182-1 | Q132: Terminada | R132: ok stock | T132: 2019-03-08 | U132: 7000079143 | W132: FIN
A133: JC006 | B133: MJC006 | C133: ARSJ0245 | E133: Sidaco | F133: RAN R1 | G133: Completed | H133: 905749-1 | Q133: Terminada | R133: ok stock | T133: 2019-03-08 | U133: 7000079143/7000079268/7000079308 | W133: FIN
A134: JC035 | B134: MJC035 | C134: ARSJ0033 | E134: Sidaco | F134: RAN R1 | G134: Active | R134: ok stock | T134: 2019-03-28 | U134: 7000079269/7000079302 | W134: FIN | X134: Rodrigo
A135: JC056 | B135: MJC056 | C135: ARSJ4732 | D135: S11 | E135: Sidaco | F135: RAN R1 | G135: Completed | T135: 2019-04-01 | U135: 7000079317 | W135: FIN | X135: SI
A136: JC303 | B136: MJC303 | C136: ARSJ0054 | E136: Sidaco | F136: RAN R1 | G136: Completed | R136: ok stock | T136: 2019-03-28 | U136: 7000079318 | W136: FIN | X136: Rodrigo
A137: JC326 | B137: MJC326 | C137: ARSJ0090 | D137: S11 | E137: Sidaco | F137: RAN R1 | G137: Completed | T137: 2019-04-01 | U137: 7000079319 | W137: FIN | X137: SI
A138: JC329 | B138: MJC329 | C138: ARSJ0179 | D138: S11 | E138: Sidaco | F138: RAN 1 | G138: Completed | T138: 2019-04-01 | U138: 7000079330 | W138: FIN | X138: SI
A139: JC339 | B139: MJC339 | C139: ARSJ4770 | D139: S11 | E139: Sidaco | F139: RAN R1 | G139: Completed | T139: 2019-04-01 | U139: 7000079266/7000079307 | W139: FIN | X139: SI
A140: JE008 | B140: MJE008 | C140: ARSJ0009 | F140: Obligraciones Pliego | T140: 2019-04-04 | U140: 7000079584 | W140: FIN | X140: Rodrigo | Y140: SI
A141: JS025 | B141: MJS025 | C141: ARSJ4730 | D141: S11 | E141: Sidaco | F141: RAN R1 | G141: Completed | T141: 1900-01-01 | U141: 7000079144 | W141: FIN
A142: JS052 | B142: MJS052 | C142: ARSJ4779 | D142: CIS SRL | E142: Sitios Nuevos | G142: Active | Q142: ADU4518R7 | R142: Las RRUS son PARALLEL , llegan en Mayo | S142: Energia OK | T142: 0 | W142: Esperar compra Parallel
A143: JS099 | B143: MJS099 | C143: ARSJ0188 | D143: SPRINT 5 | E143: Sidaco | F143: R1 - NO RAN | H143: 1087723-1 | Q143: ADU4518R7 | R143: se envio a Claudio Creteur para definicion /Según lo indicado por RDA se suma una RRU de 700 , se manda a ingenieria | S143: Ingenieria a revision ( Fuerza + Materiales) | T143: 2019-04-08 | U143: 7000079627 | W143: FIN | X143: Lucrecia | Y143: si
A144: KN284 | B144: MKN284 | G144: Completed | S144: la saco Ricky | T144: 2019-03-20 | U144: 7000079362 | W144: FIN
A145: KS061 | B145: MKS061 | C145: ARBA1528 | D145: SPRINT 9 | E145: Tesur | F145: AMBA | G145: On Hold | Q145: ODI2-065R16MJJ-GQ ( Hexa grande) | R145: sin stock | S145: fuerza ok | T145: 0 | W145: SIN STOCK | X145: NA
A146: KS165 | B146: MKS165 | C146: ARBA4358 | D146: Sprint 9 | E146: Sidaco | F146: AMBA | G146: Active | R146: Ingresaron los planos desde MI 12/04/19 | S146: Energia OK | T146: 2019-04-12 | U146: 7000079711 | W146: FIN | X146: Barbara
A147: KS171 | B147: MKS171 | C147: ARBA5612 | D147: Sprint 12/13 | E147: Sidaco | F147: AMBA | G147: Active | Q147: "Antena a definir por RDA" | R147: se envia mail consulta RDA / OK PLANOS 12/4/19 | S147: ok fuerza | T147: 2019-04-12 | U147: 7000079712 | W147: FIN | X147: Rodrigo
A148: KS238 | B148: MKS238 | E148: Sidaco | F148: AMBA | G148: Active | Q148: ODI2-065R16MJJ-GQ ( Hexa grande) | R148: se cierra hoy | S148: OK | T148: 0 | W148: SIN STOCK
A149: KS244 | B149: MKS244 | C149: ARBA13098 | D149: SPRINT BK | E149: Sidaco | F149: Despliegue | G149: Active | R149: Envio de planos de MI 12-4-19 | S149: falta energia | T149: 2019-04-12 | U149: 7000079713 | W149: FIN | X149: Rodrigo
A150: KS298 | B150: MKS298 | C150: ARBA7272 | D150: Sprint 9 | E150: Sidaco | F150: AMBA | G150: Active | T150: 2019-04-08 | U150: 7000079631 | W150: FIN | X150: Rodrigo
A151: KS457 | B151: MKS457 | C151: ARBA9719 | D151: SPRINT BK | E151: Guzman Nacich | F151: AMBA | G151: On Hold | Q151: AIR32 | R151: sin stock | T151: 0 | W151: INGENIERIA RDA | X151: Barbara
A152: KS616 | B152: MKS616 | E152: Sidaco | G152: Active | Q152: Falta definicion de antena. | R152: conflicto con el locador nos cambio nuevamente la solucion de mimetizado | S152: OK | T152: 2019-04-12 | U152: 7000079702 | W152: FIN | X152: Lucrecia
A153: LC043 | B153: MLC043 | C153: ARBA6868 | D153: S12 | E153: Guzmán Nacich | F153: AMBA | G153: 0 | H153: 1255229-1 | W153: TO DO
A154: LP025 | B154: MLP025 | C154: ARBA4070 | D154: SPRINT 4 | E154: Ericsson | F154: AMBA | G154: Active | Q154: TNA770A00RI | R154: planos ok | S154: Energia OK | W154: SIN STOCK
A155: LP110 | B155: MLP110 | C155: ARBA8074 | E155: CIS SRL | F155: AMBA | G155: Completed | H155: 1255283-1 | Q155: ASI4518R14v06 | R155: ok stock | S155: Planilla OK 2019 / Falta definir antena | T155: 2019-03-14 | U155: 7000079236 | W155: FIN
A156: MC001 | B156: MMC001 | E156: Sidaco | F156: RAN R1 | G156: Active | R156: Planos OK 11-04-19 | S156: Energia OK | T156: 2019-04-12 | U156: 7000079334 | W156: FIN | X156: Rodrigo
A157: MC004 | B157: MMC004 | E157: Sidaco | F157: RAN 1 | G157: Active | T157: 2019-03-29 | U157: 7000079482 | W157: FIN
A158: MC010 | B158: MMC010 | C158: ARME0645 | D158: CIS SRL | E158: CIS SRL | G158: Active | P158: 2019-04-17 | Q158: Quad Band + Activa | R158: consultar a RDA por el cambio de antena , no hay el modelo pedido AQU4518R24, se pide verificar si se cambia por ODI2-065R16M18J-Q -----CATALOGO 2000019816 | S158: Energia OK | T158: 2019-04-25 | U158: 7000079922 | W158: FIN
A159: MC016 | B159: MMC016 | C159: ARME0653 | E159: Sidaco | F159: RAN R1 | G159: Completed | R159: ok stock | T159: 2019-03-28 | U159: 7000079281/7000079300 | W159: FIN | X159: Rodrigo
A160: MC017 | B160: MMC017 | E160: Sidaco | F160: RAN 1 | G160: On Hold | T160: 2019-03-29 | U160: 7000079483 | W160: FIN
A161: MC019 | B161: MMC019 | C161: ARME0325 | D161: S11 | E161: Sidaco | F161: R1 | G161: Active | T161: 2019-04-12 | U161: 7000079731 | W161: FIN | X161: Lucrecia
A162: MC025 | B162: MMC025 | C162: ARME0426 | E162: Sidaco | F162: RAN R1 | G162: Completed | R162: ok stock | T162: 2019-03-28 | U162: 7000079456 | W162: FIN | X162: Rodrigo
A163: MC027 | B163: MMC027 | C163: ARME0657 | E163: Sidaco | F163: RAN R1 | G163: Active | R163: ok stock | T163: 2019-03-28 | U163: 7000079457 | W163: FIN | X163: Rodrigo
A164: MC038 | B164: MMC038 | E164: Sidaco | F164: RAN 1 | G164: Active | T164: 2019-03-29 | U164: 7000079484 | W164: FIN
A165: MC039 | B165: MMC039 | C165: ARME0836 | D165: S11 | E165: Sidaco | F165: RAN R1 | G165: Completed | T165: 2019-04-04 | U165: 7000079341 | W165: FIN | Y165: si
A166: MC064 | B166: MMC064 | C166: ARME0666 | D166: S11 | E166: Sidaco | F166: RAN R1 | G166: Completed | T166: 2019-04-01 | U166: 7000079337 | W166: FIN | X166: SI
A167: MC065 | B167: MMC065 | C167: ARME0543 | D167: S11 | E167: Sidaco | F167: RAN R1 | G167: Completed | T167: 2019-04-01 | U167: 7000079338 | W167: FIN | X167: SI
A168: MC084 | B168: MMC084 | D168: CIS SRL | F168: RAN | T168: 2019-04-25 | U168: 7000079923 | W168: FIN | X168: Barbara | Y168: SI
A169: MC330 | B169: MMC330 | E169: CIS SRL | F169: R1 | G169: Active | P169: 2019-04-17 | Q169: Sin planos / Validar modelo de antena x ODI2-065R16M18J-GQ/ Validar con Ingenieria | R169: ing no cerrada fecha de fin 17 de abril - falta la ingenieria / falta Excel materiales | T169: 2019-04-23 | U169: 7000079826 | W169: FIN | X169: Barbara
A170: MC355 | B170: MMC355 | C170: ARME0257 | D170: SPRINT BK | E170: Sidaco | F170: RAN R1 | G170: Active | T170: 1900-01-01 | U170: Espera a la ing del SMC355 | W170: FIN
A171: MN078 | B171: MMN078 | C171: ARME0161 | E171: CIS SRL | F171: R1 | G171: Planificar Ing | H171: 905791-1 | I171: 234615 | W171: TO DO
A172: MS003 | B172: MMS003 | C172: ARME0061 | E172: Sidaco | F172: RAN R1 | G172: Completed | H172: 905809-1 | Q172: AQU4518R24 | R172: ok stock | T172: 2019-03-18 | U172: 7000077204 | W172: FIN
A173: MS004 | B173: MMS004 | C173: ARME0099 | D173: SPRINT BK | E173: Sidaco | F173: RAN R1\Plan Calidad | G173: Active | S173: Falta Energia | W173: INGENIERIA DWG
A174: MS036 | B174: MMS036
A175: OC009 | B175: MOC009 | D175: S16 | E175: CIS SRL | G175: 0 | T175: 2019-03-29 | U175: 7000079854 | V175: ASI4517R3v06 | W175: FIN | X175: Lucrecia
A176: QC011 | B176: MQC011 | C176: ARNQ0377 | D176: SPRINT 8 | E176: Huawei | F176: RAN R1 | G176: Active | H176: 879117-1 | Q176: TNA770A00RI | R176: Adelanto Mario | S176: Validar planilla 2017 | T176: 2019-04-12 | U176: 69427 | W176: FIN | X176: Ricky
A177: QC053 | B177: MQC053 | C177: ARNQ0071 | D177: SPRINT 10 | E177: Huawei | F177: RAN R1 | G177: Active | R177: Adelanto Mario ( planos ingresaron 12/4/19) | S177: Energia OK | T177: 2019-04-12 | U177: 69428 | W177: FIN | X177: Ricky
A178: QC058 | B178: MQC058 | C178: ARNQ0375 | D178: SPRINT 10 | E178: Huawei | F178: RAN R1 | G178: Active | Q178: Tribanda Trisector | R178: Adelanto Mario | T178: 2019-04-12 | U178: 69433 | W178: FIN | X178: Ricky
A179: QC346 | B179: MQC346 | C179: ARNQ0379 | D179: Sprint 10 | E179: Huawei | F179: RAN R1 | G179: Completed | T179: 2019-04-11 | U179: 69136/7000079699 | W179: FIN
A180: QCM12 | B180: MQCM12 | R180: - 4 RRU’s 3262 de B28 (4T4R) | T180: 2019-04-24 | U180: 7000079869 | W180: FIN | X180: Ricky
A181: QN084 | B181: MQN084 | C181: ARNQ0565 | D181: SPRINT BK | E181: Tesur | F181: SITIOS NUEVOS | G181: Active | T181: 0 | W181: A REASIGNAR CONTRATA | X181: NA
A182: QW018 | B182: MQW018 | C182: ARNQ0037 | D182: SPRINT BK | E182: PEM | F182: Obligaciones de pliego | G182: Completed | T182: 2019-04-04 | U182: 7000079570 / 7000079573 | W182: FIN | X182: RICKY
A183: QW033 | B183: MQW033 | C183: ARNQ0235 | D183: Sprint 10 | E183: Huawei | F183: RAN R1 | G183: Active | H183: 905684-1 | Q183: ANTENA A DEFINIR | R183: INGENIERIA | S183: Ingenieria a revision ( Fuerza + Materiales) | T183: 1 | W183: INGENIERIA FUERZA + DWG
A184: RC066 | B184: MRC066 | E184: Huawei | F184: RAN R1 | G184: Active | R184: Adelanto Mario | T184: 2019-04-12 | U184: 69451 | W184: FIN | X184: Ricky
A185: RE007 | B185: MRE007 | C185: ARRN0312 | D185: Sprint 10 | E185: Huawei | F185: RAN R1 | G185: Active | H185: 1130613-1 | Q185: TNA770A00RI | R185: Adelanto Mario | T185: 2019-04-12 | U185: 69452 | W185: FIN | X185: Ricky
A186: RE024 | B186: MRE024 | C186: 0 | E186: CIS SRL | F186: RAN R1 | G186: Nuevo Sprint | H186: 0 | W186: TO DO
A187: RE308 | B187: MRE308 | C187: ARRN0313 | D187: Sprint 10 | E187: Huawei | F187: RAN R1 | G187: Active | H187: 1130625-1 | Q187: En relevaniento, no estan las ingenierias | R187: Adelanto Mario /Falta definición de antenas según PDG | T187: 2019-04-12 | U187: 69453 | W187: FIN | X187: Ricky
A188: RN001 | B188: MRN001 | C188: ARRN0224 | D188: Sprint 10 | E188: Huawei | F188: RAN R1 | G188: Active | H188: 905685-1 | Q188: En relevaniento, no estan las ingenierias | R188: Falta definición de antenas según PDG | T188: 0 | W188: INGENIERIA DWG
A189: RN014 | B189: MRN014 | C189: ARRN0093 | D189: Sprint 10 | E189: Huawei | F189: RAN R1 | G189: Active | H189: 905671-1 | Q189: AAU3910 + Falta definir banda baja | R189: Adelanto Mario | S189: falta definicion de ingenieria | T189: 2019-04-12 | U189: 69436 | W189: FIN | X189: Ricky
A190: RN022 | B190: MRN022 | C190: ARRN0014 | D190: Sprint 10 | E190: Huawei | F190: RAN R1 | G190: Active | H190: 1059136-1 | Q190: En relevaniento, no estan las ingenierias | R190: Falta definición de antenas según PDG | T190: 0 | W190: INGENIERIA DWG
A191: RN027 | B191: MRN027 | C191: ARRN0031 | E191: Tesur | F191: RAN R1 | G191: Completed | H191: 905672-1 | Q191: AQU4518R24 | R191: ok stock | T191: 2019-03-19 | U191: 7000079057 | W191: FIN
A192: RN063 | B192: MRN063 | C192: 0 | D192: Huawei | E192: 0 | F192: Active | H192: 0 | J192: 2019-04-25 | T192: 2019-04-26 | U192: 69602 | W192: FIN | X192: LUCRECIA
A193: RN078 | B193: MRN078 | C193: ARRN0460 | E193: Sidaco | F193: Sitios Nuevos | G193: Completed | H193: 888898-1 | Q193: RRZZ (AQU4518R24+ AAU3910) | R193: ok stock | S193: planilla ok 2019 | T193: 2019-03-12 | U193: 7000079204 | W193: FIN
A194: RN344 | B194: MRN344 | C194: ARRN0461 | E194: Sidaco | F194: Sitios Nuevos | G194: Completed | H194: 922220-1 | Q194: Hexabanda Chica | R194: ok stock | S194: Validar planilla 2016 | T194: 2019-03-12 | U194: 7000079206 | W194: FIN
B195: MS322 | D195: CIS SRL | W195: TO DO
A196: SR319 | B196: MSR319 | C196: ARSF1764 | E196: Sidaco | F196: Sitios Nuevos | G196: Completed | H196: 1231046-1 | Q196: ODV-065R16M18JJG / 4000084591 | R196: ok stock | T196: 2019-03-18 | U196: 7000079309 | W196: FIN
A197: SS148 | B197: MSS148 | C197: 0 | D197: CIS SRL | E197: CIS SRL | G197: Active | J197: 2019-04-12 | Q197: ATR4518R6 | R197: Sitio en ejecucion con materiales informo Ruben Retamar | S197: Energia OK | T197: 2019-04-23 | U197: 7000079200 | W197: FIN | X197: Barbara
A198: TC032 | B198: MTC032 | C198: ARTC0049 | D198: SPRINT 7 | E198: CIS SRL | F198: R1 | G198: Active | Q198: HExabanda grande o Hexabanda Chica? | R198: Ingresaron los planos desde MI 12/04/19 - discrepancia entre DWG y PDG RDA | S198: Energia OK | T198: 2019-04-17 | U198: 7000079795 | W198: FIN
A199: UW005 | B199: MUW005 | C199: ARCB0277 | E199: Guzman Nacich | F199: RAN R1 | G199: Completed | H199: 905695-1 | Q199: ok hw, falta definicion energia | R199: ok stock | T199: 2019-03-12 | U199: 7000079178 | W199: FIN
A200: UW009 | B200: MUW009 | C200: ARCB0332 | E200: Guzman Nacich | F200: RAN R1 | G200: Completed | H200: 1059095-1 | Q200: TNA770A00RI | R200: ok stock | T200: 2019-03-28 | U200: 7000079490 | W200: FIN | X200: Rodrigo
... 328 more rows

Sheet Pendientes
A4: NODO | B4: FECHA_DE_INGRESO | C4: PROPIETARIO | D4: PRIORIDAD | E4: DWG_BPM | F4: DWG_MAIL | G4: DWG_IU | H4: MATERIALES_BPM | I4: MATERIALES_MAIL | J4: MATERIALES_IU | K4: FUERZA_BPM | L4: FUERZA_MAIL | M4: FUERZA_IU | N4: OBSERVACIONES_INGRESO | O4: ESTADO | P4: SOLPE_FUEGO | Q4: FECHA_FIN | R4: HORAS_ESTIMADAS | S4: OBSERVACIONES_FINALES | T4: ANTENA_TIPO | U4: ENERGIA | V4: Verificaciones | W4: Pedido Remo | X4: Contratista | Y4: Prio | Z4: Programacion | AA4: Sitio | AB4: EPUM | AC4: diferencia | AD4: Rango
A5: a | B5: 2019-01-28 | C5: a | D5: xxx | E5: xxx | F5: xxx | G5: xx | H5: xx | I5: xx | J5: xx | K5: xx | L5: xx | M5: xx | N5: xx | O5: xx | P5: xx | Q5: 2019-02-18 | R5: xx | S5: xx | T5: xx | U5: xx | V5: v | W5: v | X5: xx | Y5: v | Z5: x | AA5: x | AB5: x | AC5: x | AD5: =VLOOKUP(Pendientes!$AC5,Hoja1!A:B,2,TRUE) -> 
A6: WQE022 | B6: 2019-05-09 | C6: Cristian | D6: Adelanto | E6: No | F6: No | G6: No | H6: No | I6: No | J6: No | K6: No | L6: Si | M6: No | N6: Borde Montuoso - evento IDEA | O6: FIN | P6: 7000080211 | Q6: 2019-05-13 | S6: Sale con el HW sw Fri Music Neuquen | T6: ASI4518R14v06 | U6: Nueva | X6: Multiradio | AC6: =Pendientes!$Q6-Pendientes!$B6 -> 4 | AD6: =VLOOKUP(Pendientes!$AC6,Hoja1!A:B,2,TRUE) -> Entre 3 y 5 dias
A7: MQE022 | B7: 2019-05-09 | C7: Cristian | D7: Adelanto | E7: No | F7: No | G7: No | H7: No | I7: No | J7: No | K7: No | L7: Si | M7: No | N7: Borde Montuoso - evento IDEA | O7: FIN | P7: 7000080211 | Q7: 2019-05-13 | S7: Sale con el HW sw Fri Music Neuquen | T7: ASI4518R14v06 | U7: Nueva | X7: Multiradio | AC7: =Pendientes!$Q7-Pendientes!$B7 -> 4 | AD7: =VLOOKUP(Pendientes!$AC7,Hoja1!A:B,2,TRUE) -> Entre 3 y 5 dias
A8: JS006 | B8: 2019-05-06 | C8: Barbara | D8: Adelanto | E8: No | F8: No | G8: No | H8: No | I8: Si | J8: No | K8: No | L8: No | M8: No | N8: SIN INFORMACION - ADELANTO OBLIGACIONES - REALIZA O&M - MATERIAL LOGISTICA INVERSA | O8: FIN | P8: 7000080223 | Q8: 2019-05-10 | T8: EXISTENTE | U8: EXISTENTE | X8: PEM | AC8: =Pendientes!$Q8-Pendientes!$B8 -> 4 | AD8: =VLOOKUP(Pendientes!$AC8,Hoja1!A:B,2,TRUE) -> Entre 3 y 5 dias
A9: JW018 | B9: 2019-05-06 | C9: Barbara | D9: Adelanto | E9: No | F9: No | G9: No | H9: No | I9: Si | J9: No | K9: No | L9: No | M9: No | N9: SIN INFORMACION - ADELANTO OBLIGACIONES - REALIZA O&M - MATERIAL LOGISTICA INVERSA | O9: FIN | P9: 7000080223 | Q9: 2019-05-10 | T9: EXISTENTE | U9: EXISTENTE | X9: PEM | AC9: =Pendientes!$Q9-Pendientes!$B9 -> 4 | AD9: =VLOOKUP(Pendientes!$AC9,Hoja1!A:B,2,TRUE) -> Entre 3 y 5 dias
A10: JS027 | B10: 2019-05-06 | C10: Barbara | D10: Adelanto | E10: No | F10: No | G10: No | H10: No | I10: Si | J10: No | K10: No | L10: No | M10: No | N10: SIN INFORMACION - ADELANTO OBLIGACIONES - REALIZA O&M - MATERIAL LOGISTICA INVERSA | O10: FIN | P10: 7000080223 | Q10: 2019-05-10 | T10: EXISTENTE | U10: EXISTENTE | X10: PEM | AC10: =Pendientes!$Q10-Pendientes!$B10 -> 4 | AD10: =VLOOKUP(Pendientes!$AC10,Hoja1!A:B,2,TRUE) -> Entre 3 y 5 dias
A11: JS028 | B11: 2019-05-06 | C11: Barbara | D11: Adelanto | E11: No | F11: No | G11: No | H11: No | I11: Si | J11: No | K11: No | L11: No | M11: No | N11: SIN INFORMACION - ADELANTO OBLIGACIONES - REALIZA O&M - MATERIAL LOGISTICA INVERSA | O11: FIN | P11: 7000080223 | Q11: 2019-05-10 | T11: EXISTENTE | U11: EXISTENTE | X11: PEM | AC11: =Pendientes!$Q11-Pendientes!$B11 -> 4 | AD11: =VLOOKUP(Pendientes!$AC11,Hoja1!A:B,2,TRUE) -> Entre 3 y 5 dias
A12: JS009 | B12: 2019-05-06 | C12: Barbara | D12: Adelanto | E12: No | F12: No | G12: No | H12: No | I12: Si | J12: No | K12: No | L12: No | M12: No | N12: SIN INFORMACION - ADELANTO OBLIGACIONES - REALIZA O&M - MATERIAL LOGISTICA INVERSA | O12: FIN | P12: 7000080223 | Q12: 2019-05-10 | T12: EXISTENTE | U12: EXISTENTE | X12: PEM | AC12: =Pendientes!$Q12-Pendientes!$B12 -> 4 | AD12: =VLOOKUP(Pendientes!$AC12,Hoja1!A:B,2,TRUE) -> Entre 3 y 5 dias
A13: CBM129 | B13: 2019-03-11 | C13: Rodrigo | K13: Sin planilla | N13: RAN 2 - Ericsson Mudanza del sitio BM029 | O13: FIN | P13: 7000079199 | Q13: 2019-03-12 | X13: Ericsson | Y13: 0 | Z13: Fin Semana 2 Marzo | AA13: BM129 | AB13: 1279211-1 | AC13: =Pendientes!$Q13-Pendientes!$B13 -> 1 | AD13: =VLOOKUP(Pendientes!$AC13,Hoja1!A:B,2,TRUE) -> en 24hs
A14: CBM141 | B14: 2019-04-25 | C14: Barbara | O14: FIN | P14: 7000079918 | Q14: 2019-04-26 | U14: Nueva | X14: Ericsson | Y14: 0 | Z14: Semana 3 Mayo | AA14: BM141 | AB14: 1317143-1 | AC14: =Pendientes!$Q14-Pendientes!$B14 -> 1 | AD14: =VLOOKUP(Pendientes!$AC14,Hoja1!A:B,2,TRUE) -> en 24hs
A15: CBT111 | B15: 09/05/2019 | C15: Lucrecia | D15: Prio 3 | E15: No | F15: No | G15: No | H15: Si | I15: No | J15: No | K15: No | L15: No | M15: No | N15: 13-05 FALTA DWG | O15: PENDIENTE INGENIERIA | X15: PEM | Z15: Fin Semana 1 Mayo | AA15: BT111 | AB15: 1249631-1 | AC15: =Pendientes!$Q15-Pendientes!$B15 -> -43594 | AD15: =VLOOKUP(Pendientes!$AC15,Hoja1!A:B,2,TRUE) -> 
A16: CMS025 | B16: 2019-05-09 | C16: Ricky | D16: Prio 3 | E16: No | F16: No | G16: No | H16: No | I16: No | J16: No | K16: No | L16: No | M16: No | N16: 14/5:No hay información en BPM | O16: PENDIENTE INGENIERIA | X16: Sidaco | Z16: Semana 4 Mayo | AA16: MS025 | AC16: =Pendientes!$Q16-Pendientes!$B16 -> -43594 | AD16: =VLOOKUP(Pendientes!$AC16,Hoja1!A:B,2,TRUE) -> 
A17: CQN084 | C17: Pendiente | O17: A REASIGNAR CONTRATA | X17: Sin Asignacion | Y17: 0 | Z17: Vaca Muerta | AA17: QN084 | AB17: 516212-1 | AC17: =Pendientes!$Q17-Pendientes!$B17 -> 0 | AD17: =VLOOKUP(Pendientes!$AC17,Hoja1!A:B,2,TRUE) -> en 24hs
A18: FAC008 | C18: Rodrigo | N18: falta hacer 3500 | O18: FIN | P18: 7000079898 | Q18: 2019-04-25 | T18: ATD4516R8 | X18: CIS SRL | Y18: 0 | Z18: Fin Semana 2 Mayo | AA18: AC008 | AB18: 1081392-1 | AC18: =Pendientes!$Q18-Pendientes!$B18 -> 43580 | AD18: =VLOOKUP(Pendientes!$AC18,Hoja1!A:B,2,TRUE) -> Mas de 10 días
A19: FKS111 | C19: Ricky | O19: TO DO | X19: Sidaco | Y19: Prio 1 | Z19: Revisión Plan 3.5 | AA19: KS111 | AB19: 1232430-1 | AC19: =Pendientes!$Q19-Pendientes!$B19 -> 0 | AD19: =VLOOKUP(Pendientes!$AC19,Hoja1!A:B,2,TRUE) -> en 24hs
A20: FKS126 | C20: Ricky | O20: TO DO | X20: Sidaco | Y20: Prio 1 | Z20: Revisión Plan 3.5 | AA20: KS126 | AB20: 1232432-1 | AC20: =Pendientes!$Q20-Pendientes!$B20 -> 0 | AD20: =VLOOKUP(Pendientes!$AC20,Hoja1!A:B,2,TRUE) -> en 24hs
A21: FKS183 | C21: Ricky | O21: TO DO | X21: Sidaco | Y21: Prio 1 | Z21: Revisión Plan 3.5 | AA21: KS183 | AB21: 1232429-1 | AC21: =Pendientes!$Q21-Pendientes!$B21 -> 0 | AD21: =VLOOKUP(Pendientes!$AC21,Hoja1!A:B,2,TRUE) -> en 24hs
A22: FOC001 | B22: 2019-05-03 | C22: Barbara | E22: No | F22: No | G22: No | H22: No | I22: No | J22: No | K22: Si | L22: No | M22: No | N22: 10-05 PLANILLA DE FUERZA DESACTUALIZADA -SIN DWG falta hacer 3500 | O22: SIN STOCK | T22: antenas TDD ingresadas / faltan las RRUS | X22: CIS SRL | Y22: Prio 3 | Z22: Semana 1 Junio | AA22: OC001 | AB22: 1081409-1 | AC22: =Pendientes!$Q22-Pendientes!$B22 -> -43588 | AD22: =VLOOKUP(Pendientes!$AC22,Hoja1!A:B,2,TRUE) -> 
A23: FQC006 | C23: Rodrigo | E23: NO | F23: NO | G23: NO | H23: NO | I23: NO | J23: NO | K23: NO | L23: NO | M23: NO | N23: Falta ingreso de las RRUs + Antenas TDD | O23: PENDIENTE INGENIERIA | T23: TDD | X23: Huawei | Y23: Prio 3 | Z23: Semana 1 Junio | AA23: QC006 | AB23: 1081416-1 | AC23: =Pendientes!$Q23-Pendientes!$B23 -> 0 | AD23: =VLOOKUP(Pendientes!$AC23,Hoja1!A:B,2,TRUE) -> en 24hs
A24: FXC180 | B24: 2019-05-03 | C24: Barbara | E24: No | F24: No | G24: No | H24: No | I24: No | J24: No | K24: No | L24: No | M24: No | N24: 10/05 SIN DWG NI PLANILLA DE FUERZA - falta hacer 3500 | O24: PENDIENTE INGENIERIA | T24: antenas TDD ingresadas / faltan las RRUS | W24: CIS SRL | X24: CIS SRL | Y24: Prio 3 | Z24: Semana 1 Junio | AA24: XC180 | AB24: 1081405-1 | AC24: =Pendientes!$Q24-Pendientes!$B24 -> -43588 | AD24: =VLOOKUP(Pendientes!$AC24,Hoja1!A:B,2,TRUE) -> 
A25: GBM129 | B25: 2019-03-11 | C25: Rodrigo | K25: Sin planilla | N25: RAN 2 - Ericsson Mudanza del sitio BM029 | O25: FIN | P25: 7000079199 | Q25: 2019-03-12 | X25: Ericsson | Y25: 0 | Z25: Fin Semana 2 Marzo | AA25: BM129 | AB25: 1279210-1 | AC25: =Pendientes!$Q25-Pendientes!$B25 -> 1 | AD25: =VLOOKUP(Pendientes!$AC25,Hoja1!A:B,2,TRUE) -> en 24hs
A26: GGC310 | B26: 2019-03-11 | K26: OK energia | N26: ok stock | O26: FIN | P26: 7000079310 | Q26: 2019-03-18 | T26: ATR4518R6 | X26: CIS SRL | Y26: 0 | Z26: Fin Semana 2 Marzo | AA26: GC310 | AB26: 1104316-1 | AC26: =Pendientes!$Q26-Pendientes!$B26 -> 7 | AD26: =VLOOKUP(Pendientes!$AC26,Hoja1!A:B,2,TRUE) -> Entre 5 y 10 dias
A27: GSR319 | N27: ok stock | O27: FIN | X27: Sidaco | Y27: 0 | Z27: Fin Semana 2 Marzo | AA27: SR319 | AB27: 916500-1 | AC27: =Pendientes!$Q27-Pendientes!$B27 -> 0 | AD27: =VLOOKUP(Pendientes!$AC27,Hoja1!A:B,2,TRUE) -> en 24hs
A28: GXC349 | C28: Barbara | K28: fuerza OK | N28: Faltan los planos | O28: FIN | P28: 7000079667/7000079668 | Q28: 2019-04-11 | T28: Mudanza del GXC049. Configuración (3x2). ATR4518R6 (usar puerto libre de alta para 2G diplexado con 3G mudanza del XC049 - sitio NO RAN | X28: CIS SRL | Y28: 0 | Z28: Fin Semana 4 Abril | AA28: XC349 | AB28: 1285181-1 | AC28: =Pendientes!$Q28-Pendientes!$B28 -> 43566 | AD28: =VLOOKUP(Pendientes!$AC28,Hoja1!A:B,2,TRUE) -> Mas de 10 días
A29: GZW012 | B29: 2019-04-29 | C29: Barbara | D29: Alta | O29: FIN-A | P29: 7000080017 | Q29: 2019-05-02 | S29: FALTA SOLPE POR ANTENAS POR FALTA DE STOCK | T29: ASI4517R3v06 | U29: Nueva | X29: CIS SRL | Y29: Prio 1 | AA29: ZW012 | AC29: =Pendientes!$Q29-Pendientes!$B29 -> 3 | AD29: =VLOOKUP(Pendientes!$AC29,Hoja1!A:B,2,TRUE) -> Entre 3 y 5 dias
A30: JS040 | B30: 2019-05-02 | C30: Pendiente | O30: A REASIGNAR CONTRATA | X30: Tesur | Y30: Prio 1 | AA30: JS040 | AC30: =Pendientes!$Q30-Pendientes!$B30 -> -43587 | AD30: =VLOOKUP(Pendientes!$AC30,Hoja1!A:B,2,TRUE) -> 
A31: LAN003 | B31: 2019-04-29 | C31: Rodrigo | D31: Alta | E31: Si | F31: No | G31: No | H31: No | I31: No | J31: No | K31: Si | L31: No | M31: No | N31: Antena sin stock ODI2-065R16MJJ02-GQ V1 | O31: FIN | P31: 7000079958/7000079959 | Q31: 2019-04-29 | S31: Esperar la entrada del catálogo 2000018376. ODI2-065R16MJJ02-GQ V1 - solpe 7000079959 | T31: ODI2-065R16MJJ02-GQ V1 | U31: Nueva | W31: CIS SRL | X31: CIS SRL | Y31: 0 | Z31: Fin Semana 2 Mayo | AA31: AN003 | AB31: 536850-1 | AC31: =Pendientes!$Q31-Pendientes!$B31 -> 0 | AD31: =VLOOKUP(Pendientes!$AC31,Hoja1!A:B,2,TRUE) -> en 24hs
A32: LAN057 | B32: 2019-05-07 | C32: Barbara | E32: Si | F32: No | G32: No | H32: No | I32: No | J32: No | K32: No | L32: Si | M32: Si | N32: 10/05 RRU Y BBU Faltante HW para RAN 1 | O32: SIN STOCK | X32: CIS SRL | Z32: Semana 1 Junio | AA32: AN057 | AB32: 1302229-1 | AC32: =Pendientes!$Q32-Pendientes!$B32 -> -43592 | AD32: =VLOOKUP(Pendientes!$AC32,Hoja1!A:B,2,TRUE) -> 
A33: LBB482 | O33: FIN | P33: 7000079247 | Q33: 2019-03-29 | X33: Guzmán Nacich | Y33: 0 | Z33: Fin Semana 2 Marzo | AA33: BB482 | AB33: 1109693-1 | AC33: =Pendientes!$Q33-Pendientes!$B33 -> 43553 | AD33: =VLOOKUP(Pendientes!$AC33,Hoja1!A:B,2,TRUE) -> Mas de 10 días
A34: LBC754 | B34: 2019-05-07 | C34: Ricky | O34: TO DO | X34: Sidaco | Z34: Semana 4 Mayo | AA34: BC754 | AB34: 1250357-1 | AC34: =Pendientes!$Q34-Pendientes!$B34 -> -43592 | AD34: =VLOOKUP(Pendientes!$AC34,Hoja1!A:B,2,TRUE) -> 
A35: LBM129 | B35: 2019-03-11 | C35: Rodrigo | K35: Sin planilla | N35: RAN 2 - Ericsson Mudanza del sitio BM029 | O35: FIN | P35: 7000079199 | Q35: 2019-03-12 | X35: Ericsson | Y35: 0 | Z35: Fin Semana 2 Marzo | AA35: BM129 | AB35: 1279212-1 | AC35: =Pendientes!$Q35-Pendientes!$B35 -> 1 | AD35: =VLOOKUP(Pendientes!$AC35,Hoja1!A:B,2,TRUE) -> en 24hs
A36: LBM141 | B36: 2019-04-25 | C36: Barbara | O36: FIN | P36: 7000079918 | Q36: 2019-04-26 | U36: Nueva | X36: Ericsson | Y36: 0 | Z36: Semana 3 Mayo | AA36: BM141 | AB36: 1317142-1 | AC36: =Pendientes!$Q36-Pendientes!$B36 -> 1 | AD36: =VLOOKUP(Pendientes!$AC36,Hoja1!A:B,2,TRUE) -> en 24hs
A37: LBM795 | B37: 25/4/2019 | C37: Lucrecia | D37: Alta | E37: NO | F37: No | G37: No | H37: No | I37: No | J37: No | K37: No | L37: Si | M37: No | N37: No cuenta con planilla de fuerza y tampoco hwr nodo | O37: FIN-A | P37: Cross Dock 7000080085 | Q37: 2019-05-06 | S37: se pidio frenar el pedido 26/04/2019. Salio solpe de Cross Dock Falta solpe de Fuerza | T37: ODI2-065R16MJJ-GQ | U37: Nueva | X37: Guzmán Nacich | Y37: Prio 1 | Z37: Semana 3 Mayo | AA37: BM795 | AB37: 944039-1 | AC37: =Pendientes!$Q37-Pendientes!$B37 -> 11 | AD37: =VLOOKUP(Pendientes!$AC37,Hoja1!A:B,2,TRUE) -> Mas de 10 días
A38: LBN901 | K38: ok ingenieria / falta actualizar ingenieria fuerza | N38: sin stock | O38: FIN | P38: 7000079430 | Q38: 2019-03-25 | T38: TNA770A00RI | X38: CIS SRL | Y38: 0 | Z38: Fin Semana 4 Abril | AA38: BN901 | AB38: 1261089-1 | AC38: =Pendientes!$Q38-Pendientes!$B38 -> 43549 | AD38: =VLOOKUP(Pendientes!$AC38,Hoja1!A:B,2,TRUE) -> Mas de 10 días
A39: LBO013 | B39: 2019-04-25 | C39: Lucrecia | D39: Alta | E39: NO | F39: SI | G39: NO | H39: NO | I39: NO | J39: NO | K39: NO | L39: SI | M39: NO | N39: DWG Desactualizado - SE RECIBE MAIL 3/5/19 CON PLANOS Y FUERZA | O39: FIN | P39: 7000080134 | Q39: 2019-05-08 | S39: Ingenieria incompleta, se pedia instalar 1900 | T39: ODV065R16M18JJG | U39: Nueva | X39: PEM | Y39: Prio 1 | Z39: Semana 3 Mayo | AA39: BO013 | AB39: 1115549-1 | AC39: =Pendientes!$Q39-Pendientes!$B39 -> 13 | AD39: =VLOOKUP(Pendientes!$AC39,Hoja1!A:B,2,TRUE) -> Mas de 10 días
A40: LBO018 | C40: Ricky | O40: TO DO | X40: Sidaco | Y40: Prio 1 | Z40: Semana 4 Mayo | AA40: BO018 | AB40: 1331410-1 | AC40: =Pendientes!$Q40-Pendientes!$B40 -> 0 | AD40: =VLOOKUP(Pendientes!$AC40,Hoja1!A:B,2,TRUE) -> en 24hs
A41: LBS144 | O41: FIN | P41: 7000079131 | Q41: 2019-03-06 | X41: Sidaco | Y41: 0 | Z41: Fin Semana 4 Abril | AA41: BS144 | AB41: 1059042-1 | AC41: =Pendientes!$Q41-Pendientes!$B41 -> 43530 | AD41: =VLOOKUP(Pendientes!$AC41,Hoja1!A:B,2,TRUE) -> Mas de 10 días
A42: LC002 | O42: FIN | P42: 7000079503 | Q42: 2019-03-29 | X42: Guzmán Nacich | AC42: =Pendientes!$Q42-Pendientes!$B42 -> 43553 | AD42: =VLOOKUP(Pendientes!$AC42,Hoja1!A:B,2,TRUE) -> Mas de 10 días
A43: LCE017 | C43: Ricky | D43: Adelanto | O43: FIN | P43: 7000079586 | Q43: 2019-04-05 | X43: Multiradio | Y43: 0 | Z43: Pendiente Ingeniería | AA43: CE017 | AB43: 1322758-1 | AC43: =Pendientes!$Q43-Pendientes!$B43 -> 43560 | AD43: =VLOOKUP(Pendientes!$AC43,Hoja1!A:B,2,TRUE) -> Mas de 10 días
A44: LCE018 | C44: Ricky | D44: Adelanto | O44: FIN | P44: 7000079586 | Q44: 2019-04-05 | X44: Multiradio | Y44: 0 | Z44: Pendiente Ingeniería | AA44: CE018 | AB44: 1326231-1 | AC44: =Pendientes!$Q44-Pendientes!$B44 -> 43560 | AD44: =VLOOKUP(Pendientes!$AC44,Hoja1!A:B,2,TRUE) -> Mas de 10 días
A45: LCM505 | C45: Lucrecia | K45: ok fuerza | N45: ok planos | O45: FIN | P45: 7000079696 | Q45: 2019-04-11 | X45: PEM | Y45: 0 | Z45: Fin Semana 4 Abril | AA45: CM505 | AB45: 1248082-1 | AC45: =Pendientes!$Q45-Pendientes!$B45 -> 43566 | AD45: =VLOOKUP(Pendientes!$AC45,Hoja1!A:B,2,TRUE) -> Mas de 10 días
A46: LCS352 | C46: Lucrecia | D46: Adelanto | N46: no contamos con ninguna definicion para emitir la SOLPE | O46: FIN | P46: 69396 /7000079681 | Q46: 2019-04-10 | T46: "Antena a definir por RDA" | X46: Telxius | Y46: 0 | Z46: Semana 3 Mayo | AA46: CS352 | AB46: 1342227-1 | AC46: =Pendientes!$Q46-Pendientes!$B46 -> 43565 | AD46: =VLOOKUP(Pendientes!$AC46,Hoja1!A:B,2,TRUE) -> Mas de 10 días
A47: LCS546 | K47: falta ingenieria / OK fuerza | O47: FIN | P47: stock contratista | Q47: 2019-04-08 | X47: PEM | Y47: 0 | Z47: Fin Semana 1 Abril | AA47: CS546 | AB47: 1322740-1 | AC47: =Pendientes!$Q47-Pendientes!$B47 -> 43563 | AD47: =VLOOKUP(Pendientes!$AC47,Hoja1!A:B,2,TRUE) -> Mas de 10 días
A48: LCS817 | C48: Ricky | D48: Media | E48: SI | F48: NO | G48: NO | H48: NO | I48: NO | J48: NO | K48: No | L48: NO | M48: NO | N48: SE USA PLANOS Y FUERZA DE TESUR | O48: FIN-A | P48: 7000080178 | Q48: 2019-05-09 | S48: FALTA HACER SOLPE POR ANTENA | T48: ASI-R3 | U48: Existente | X48: Sidaco | Y48: Prio 2 | Z48: Semana 4 Mayo | AA48: CS817 | AB48: 1323609-1 | AC48: =Pendientes!$Q48-Pendientes!$B48 -> 43594 | AD48: =VLOOKUP(Pendientes!$AC48,Hoja1!A:B,2,TRUE) -> Mas de 10 días
A49: LCU024 | B49: 2019-05-09 | C49: Lucrecia | D49: Prio 2 | O49: TO DO | X49: Guzmán Nacich | Z49: Semana 4 Mayo | AA49: CU024 | AB49: 1252157-1 | AC49: =Pendientes!$Q49-Pendientes!$B49 -> -43594 | AD49: =VLOOKUP(Pendientes!$AC49,Hoja1!A:B,2,TRUE) -> 
A50: LCU087 | B50: 2019-04-30 | C50: Ricky | E50: No | F50: NO | G50: NO | H50: NO | I50: NO | J50: NO | K50: NO | L50: Ok | M50: NO | N50: Sin Stock Antena | O50: FIN-A | P50: 7000080144 | Q50: 2019-05-07 | S50: Sin Stock Antena - DC3 + Sec + BB2 | U50: Nueva | X50: Sidaco | Y50: Prio 1 | Z50: Semana 3 Mayo | AA50: CU087 | AB50: 1320276-1 | AC50: =Pendientes!$Q50-Pendientes!$B50 -> 7 | AD50: =VLOOKUP(Pendientes!$AC50,Hoja1!A:B,2,TRUE) -> Entre 5 y 10 dias
A51: LCU514 | C51: Lucrecia | K51: ok fuerza | N51: ok planos | O51: FIN | P51: 7000079697 | Q51: 2019-04-11 | X51: PEM | Y51: 0 | Z51: Fin Semana 4 Abril | AA51: CU514 | AB51: 1284190-1 | AC51: =Pendientes!$Q51-Pendientes!$B51 -> 43566 | AD51: =VLOOKUP(Pendientes!$AC51,Hoja1!A:B,2,TRUE) -> Mas de 10 días
A52: LCU521 | B52: 02/05/2019 | C52: Lucrecia | E52: Incompleto | F52: No | G52: No | H52: Incompleto | I52: No | J52: No | K52: Incompleto | L52: No | M52: Si | N52: Informacion incompleta | O52: FIN | P52: 7000080198 | Q52: 2019-05-13 | S52: Información incompleta | T52: OMNI_1W_OOA-360V04NZ | U52: Nueva | X52: PEM | Y52: 0 | Z52: Semana 4 Mayo | AA52: CU521 | AB52: 1284186-1 | AC52: =Pendientes!$Q52-Pendientes!$B52 -> 11 | AD52: =VLOOKUP(Pendientes!$AC52,Hoja1!A:B,2,TRUE) -> Mas de 10 días
A53: LCU574 | B53: 02/05/2019 | C53: Lucrecia | E53: Si | F53: No | G53: No | H53: Si | I53: No | J53: No | K53: Si | L53: No | M53: No | N53: Ingeniería DWG y Fuerza. | O53: FIN | P53: 7000080220/7000080221 | Q53: 2019-05-10 | S53: Ingeniería DWG y Fuerza. Cross Dock por parte del material | T53: OMNI 00A-360V04NZ | U53: Existente | X53: PEM | Y53: 0 | Z53: Semana 3 Mayo Forzado | AA53: CU574 | AB53: 1284187-1 | AC53: =Pendientes!$Q53-Pendientes!$B53 -> 8 | AD53: =VLOOKUP(Pendientes!$AC53,Hoja1!A:B,2,TRUE) -> Entre 5 y 10 dias
A54: LFC003 | B54: 2019-04-30 | C54: Cristian | E54: NO | F54: NO | G54: NO | H54: NO | I54: NO | J54: NO | K54: NO | L54: SI | M54: NO | N54: Sin planos | O54: FIN | P54: 7000080233 / 7000080222 | Q54: 2019-05-10 | T54: ODI2-065R16M18JGQ | U54: Nueva | X54: Multiradio | Y54: Prio 1 | Z54: Semana 3 Mayo Forzado | AA54: FC003 | AB54: 483202-1 | AC54: =Pendientes!$Q54-Pendientes!$B54 -> 10 | AD54: =VLOOKUP(Pendientes!$AC54,Hoja1!A:B,2,TRUE) -> Mas de 10 días
A55: LFE047 | C55: Rodrigo | O55: FIN | P55: 7000078847/7000079682 | Q55: 2019-04-10 | X55: CIS SRL | Y55: 0 | Z55: Fin Semana 2 Abril | AA55: FE047 | AB55: 890927-1 | AC55: =Pendientes!$Q55-Pendientes!$B55 -> 43565 | AD55: =VLOOKUP(Pendientes!$AC55,Hoja1!A:B,2,TRUE) -> Mas de 10 días
A56: LFE048 | C56: Rodrigo | O56: FIN | P56: 7000078846/7000079682 | Q56: 2019-04-10 | X56: CIS SRL | Y56: 0 | Z56: Fin Semana 2 Abril | AA56: FE048 | AB56: 919297-1 | AC56: =Pendientes!$Q56-Pendientes!$B56 -> 43565 | AD56: =VLOOKUP(Pendientes!$AC56,Hoja1!A:B,2,TRUE) -> Mas de 10 días
A57: LFE049 | C57: Rodrigo | O57: FIN | P57: 7000078848/7000079682 | Q57: 2019-04-10 | X57: CIS SRL | Y57: 0 | Z57: Fin Semana 2 Abril | AA57: FE049 | AB57: 895435-1 | AC57: =Pendientes!$Q57-Pendientes!$B57 -> 43565 | AD57: =VLOOKUP(Pendientes!$AC57,Hoja1!A:B,2,TRUE) -> Mas de 10 días
A58: LFE052 | C58: Rodrigo | O58: FIN | P58: 7000078849/7000079682 | Q58: 2019-04-10 | X58: CIS SRL | Y58: 0 | Z58: Fin Semana 2 Abril | AA58: FE052 | AB58: 889182-1 | AC58: =Pendientes!$Q58-Pendientes!$B58 -> 43565 | AD58: =VLOOKUP(Pendientes!$AC58,Hoja1!A:B,2,TRUE) -> Mas de 10 días
A59: LGC310 | B59: 2019-03-11 | K59: OK energia | N59: ok stock | O59: FIN | P59: 7000079310 | Q59: 2019-03-18 | T59: ATR4518R6 | X59: CIS SRL | Y59: 0 | Z59: Fin Semana 2 Marzo | AA59: GC310 | AB59: 1108369-1 | AC59: =Pendientes!$Q59-Pendientes!$B59 -> 7 | AD59: =VLOOKUP(Pendientes!$AC59,Hoja1!A:B,2,TRUE) -> Entre 5 y 10 dias
A60: LIC009 | O60: FIN | P60: 7000079505 | Q60: 2019-03-29 | X60: Guzmán Nacich | Y60: 0 | AA60: IC009 | AC60: =Pendientes!$Q60-Pendientes!$B60 -> 43553 | AD60: =VLOOKUP(Pendientes!$AC60,Hoja1!A:B,2,TRUE) -> Mas de 10 días
A61: LIC024 | C61: Ricky | D61: Adelanto | O61: FIN | P61: 7000079596 | Q61: 2019-04-05 | X61: Guzmán Nacich | Y61: 0 | Z61: Fin Semana 2 Abril | AA61: IC024 | AB61: 1059054-1 | AC61: =Pendientes!$Q61-Pendientes!$B61 -> 43560 | AD61: =VLOOKUP(Pendientes!$AC61,Hoja1!A:B,2,TRUE) -> Mas de 10 días
A62: LIN001 | D62: Adelanto | N62: Planos OK enviados 12-4-19 | O62: FIN | P62: 7000079506 | Q62: 2019-03-29 | X62: Guzmán Nacich | Y62: 0 | AA62: IN001 | AC62: =Pendientes!$Q62-Pendientes!$B62 -> 43553 | AD62: =VLOOKUP(Pendientes!$AC62,Hoja1!A:B,2,TRUE) -> Mas de 10 días
A63: LJC201 | B63: 2019-03-11 | N63: ok stock | O63: FIN | P63: 7000079191 | Q63: 2019-03-11 | T63: Terminada | X63: PEM | Y63: 0 | Z63: Fin Semana 2 Marzo | AA63: JC201 | AB63: 1263061-1 | AC63: =Pendientes!$Q63-Pendientes!$B63 -> 0 | AD63: =VLOOKUP(Pendientes!$AC63,Hoja1!A:B,2,TRUE) -> en 24hs
A64: LJS015 | C64: Lucrecia | D64: Adelanto | K64: falta fuerza | N64: sin ingenieria falta DWG | O64: FIN | P64: 7000079600 | Q64: 2019-04-05 | X64: Sidaco | Y64: 0 | Z64: Pendiente Ingeniería | AA64: JS015 | AC64: =Pendientes!$Q64-Pendientes!$B64 -> 43560 | AD64: =VLOOKUP(Pendientes!$AC64,Hoja1!A:B,2,TRUE) -> Mas de 10 días
A65: LJS017 | C65: Lucrecia | D65: Adelanto | K65: falta fuerza | N65: verificar ingenieria | O65: FIN | P65: 7000079589 | Q65: 2019-04-05 | X65: Sidaco | Y65: 0 | Z65: Pendiente Ingeniería | AA65: JS017 | AC65: =Pendientes!$Q65-Pendientes!$B65 -> 43560 | AD65: =VLOOKUP(Pendientes!$AC65,Hoja1!A:B,2,TRUE) -> Mas de 10 días
A66: LJS037 | C66: Lucrecia | D66: Adelanto | K66: falta fuerza | N66: sin ingenieria falta DWG | O66: FIN | P66: 7000079601 | Q66: 2019-04-05 | X66: Sidaco | Y66: 0 | Z66: Pendiente Ingeniería | AA66: JS037 | AC66: =Pendientes!$Q66-Pendientes!$B66 -> 43560 | AD66: =VLOOKUP(Pendientes!$AC66,Hoja1!A:B,2,TRUE) -> Mas de 10 días
A67: LKO522 | B67: 2019-04-30 | C67: Ricky / Finalizado | O67: FINALIZADA | X67: Sidaco | Y67: Prio 1 | Z67: Fin Semana 1 Mayo | AA67: KO522 | AB67: 1115565-1 | AC67: =Pendientes!$Q67-Pendientes!$B67 -> -43585 | AD67: =VLOOKUP(Pendientes!$AC67,Hoja1!A:B,2,TRUE) -> 
A68: LKS119 | B68: 2019-02-19 | N68: Sitio Finalizado | O68: FIN | P68: buscar | Q68: 2019-02-19 | S68: Se toma la fecha de integracion 19/2/2019 | X68: Sidaco | Y68: 0 | Z68: Fin Semana 2 Marzo | AA68: KS119 | AB68: 1247967-1 | AC68: =Pendientes!$Q68-Pendientes!$B68 -> 0 | AD68: =VLOOKUP(Pendientes!$AC68,Hoja1!A:B,2,TRUE) -> en 24hs
A69: LKS323 | C69: Ricky | D69: Alta | E69: SI | F69: No | G69: No | H69: No | I69: No | J69: No | K69: SI | L69: No | M69: No | N69: RRU's de desmonte | O69: FIN | P69: 7000080179 | Q69: 2019-05-09 | S69: RRU's de desmonte | T69: ADU-R7 | U69: Nueva | X69: Sidaco | Y69: Prio 1 | Z69: Semana 3 Mayo Forzado | AA69: KS323 | AB69: 1150644-1 | AC69: =Pendientes!$Q69-Pendientes!$B69 -> 43594 | AD69: =VLOOKUP(Pendientes!$AC69,Hoja1!A:B,2,TRUE) -> Mas de 10 días
A70: LKS348 | C70: Ricky | D70: Alta | E70: No | F70: No | G70: No | H70: No | I70: No | J70: No | K70: No | L70: No | M70: No | O70: FIN | P70: 7000080200 | Q70: 2019-05-09 | S70: RRU's de desmonte | T70: NO | U70: Nueva | X70: Sidaco | Y70: Prio 1 | Z70: Semana 3 Mayo Forzado | AA70: KS348 | AB70: 1149719-1 | AC70: =Pendientes!$Q70-Pendientes!$B70 -> 43594 | AD70: =VLOOKUP(Pendientes!$AC70,Hoja1!A:B,2,TRUE) -> Mas de 10 días
A71: LKS378 | O71: FIN | P71: 7000079378 | Q71: 2019-04-04 | X71: Sidaco | Y71: 0 | Z71: Fin Semana 2 Abril | AA71: KS378 | AB71: 421111-1 | AC71: =Pendientes!$Q71-Pendientes!$B71 -> 43559 | AD71: =VLOOKUP(Pendientes!$AC71,Hoja1!A:B,2,TRUE) -> Mas de 10 días
A72: LKS463 | C72: Ricky | E72: SI | F72: NO | G72: NO | H72: NO | I72: NO | J72: NO | K72: NO | L72: NO | O72: FIN | P72: 7000080207 | Q72: 2019-05-10 | X72: Sidaco | Y72: Prio 1 | Z72: Semana 3 Mayo Forzado | AA72: KS463 | AB72: 1149721-1 | AC72: =Pendientes!$Q72-Pendientes!$B72 -> 43595 | AD72: =VLOOKUP(Pendientes!$AC72,Hoja1!A:B,2,TRUE) -> Mas de 10 días
A73: LKS496 | C73: Ricky | E73: NO | F73: NO | G73: NO | H73: NO | I73: NO | J73: NO | K73: NO | L73: NO | O73: FIN | P73: 7000080208 | Q73: 2019-05-10 | X73: Sidaco | Y73: Prio 1 | Z73: Semana 3 Mayo Forzado | AA73: KS496 | AB73: 1149711-1 | AC73: =Pendientes!$Q73-Pendientes!$B73 -> 43595 | AD73: =VLOOKUP(Pendientes!$AC73,Hoja1!A:B,2,TRUE) -> Mas de 10 días
A74: LKS604 | B74: 2019-04-30 | C74: Rodrigo | O74: SITIOS | X74: Ericsson | Y74: Prio 1 | Z74: Semana 4 Mayo | AA74: KS604 | AB74: 854830-1 | AC74: =Pendientes!$Q74-Pendientes!$B74 -> -43585 | AD74: =VLOOKUP(Pendientes!$AC74,Hoja1!A:B,2,TRUE) -> 
A75: LKS702 | O75: FIN | P75: 7000079377 | Q75: 2019-04-04 | X75: Sidaco | Y75: 0 | Z75: Fin Semana 2 Abril | AA75: KS702 | AB75: 1301596-1 | AC75: =Pendientes!$Q75-Pendientes!$B75 -> 43559 | AD75: =VLOOKUP(Pendientes!$AC75,Hoja1!A:B,2,TRUE) -> Mas de 10 días
A76: LKS703 | D76: Adelanto | O76: FIN | P76: 7000079390 | Q76: 2019-04-04 | X76: Sidaco | Y76: 0 | Z76: Fin Semana 2 Mayo | AA76: KS703 | AB76: 1312797-1 | AC76: =Pendientes!$Q76-Pendientes!$B76 -> 43559 | AD76: =VLOOKUP(Pendientes!$AC76,Hoja1!A:B,2,TRUE) -> Mas de 10 días
A77: LKS704 | D77: Adelanto | O77: FIN | P77: 7000079379 | Q77: 2019-04-04 | X77: Sidaco | Y77: 0 | Z77: Fin Semana 2 Mayo | AA77: KS704 | AB77: 1312799-1 | AC77: =Pendientes!$Q77-Pendientes!$B77 -> 43559 | AD77: =VLOOKUP(Pendientes!$AC77,Hoja1!A:B,2,TRUE) -> Mas de 10 días
A78: LKS706 | O78: FIN | P78: 7000079376 | Q78: 2019-04-04 | X78: Sidaco | Y78: 0 | Z78: Fin Semana 2 Abril | AA78: KS706 | AB78: 1301597-1 | AC78: =Pendientes!$Q78-Pendientes!$B78 -> 43559 | AD78: =VLOOKUP(Pendientes!$AC78,Hoja1!A:B,2,TRUE) -> Mas de 10 días
A79: LKS707 | B79: 2019-05-07 | C79: Barbara | D79: Adelanto | E79: Si | F79: NO | G79: NO | H79: NO | I79: NO | J79: NO | K79: NO | L79: SI | M79: NO | N79: pedido adelante HR | O79: FIN | P79: 7000080185 | Q79: 2019-05-09 | U79: Nueva | X79: Sidaco | Z79: Semana 3 Mayo Forzado | AA79: KS707 | AB79: 1331704-1 | AC79: =Pendientes!$Q79-Pendientes!$B79 -> 2 | AD79: =VLOOKUP(Pendientes!$AC79,Hoja1!A:B,2,TRUE) -> Entre 24 y 72Hs
A80: LLP088 | B80: 5/7/2019 | C80: Rodrigo | D80: Media | E80: SI | F80: NO | G80: NO | H80: SI | I80: NO | J80: NO | K80: SI | L80: NO | M80: NO | N80: ERICSSON PROVEE 2100 | O80: FIN-A | P80: 7000080167 | Q80: 2019-05-09 | T80: TNA770A00RI | X80: Ericsson | Z80: Semana 4 Mayo | AA80: LP088 | AB80: 1088815-1 | AC80: =Pendientes!$Q80-Pendientes!$B80 -> -57 | AD80: =VLOOKUP(Pendientes!$AC80,Hoja1!A:B,2,TRUE) -> 
A81: LLP148 | B81: 2019-03-11 | C81: Rodrigo | K81: Validar planilla 2017 | N81: ok stock | O81: FIN | P81: 7000079403 | Q81: 2019-03-22 | T81: ODV065R16M18JG=4000084568 | X81: Ericsson | Y81: 0 | Z81: Fin Semana 2 Marzo | AA81: LP148 | AB81: 916521-1 | AC81: =Pendientes!$Q81-Pendientes!$B81 -> 11 | AD81: =VLOOKUP(Pendientes!$AC81,Hoja1!A:B,2,TRUE) -> Mas de 10 días
A82: LLP158 | B82: 2019-04-30 | C82: Lucrecia | D82: Adelanto | E82: NO | F82: NO | G82: NO | H82: NO | I82: NO | J82: NO | K82: NO | L82: SI | M82: NO | N82: solicitado por HR | O82: FIN | P82: 7000080166 | Q82: 2019-05-09 | T82: ODV-065R15M18J-G | U82: Nueva | X82: Guzmán Nacich | Z82: Semana 3 Mayo Forzado | AA82: LP158 | AB82: 1320947-1 | AC82: =Pendientes!$Q82-Pendientes!$B82 -> 9 | AD82: =VLOOKUP(Pendientes!$AC82,Hoja1!A:B,2,TRUE) -> Entre 5 y 10 dias
A83: LLP159 | B83: 2019-04-30 | C83: Lucrecia | D83: Adelanto | E83: NO | F83: NO | G83: NO | H83: NO | I83: NO | J83: NO | K83: NO | L83: SI | M83: NO | N83: solicitado por HR | O83: FIN | P83: 7000080166 | Q83: 2019-05-09 | T83: ODV-065R15M18J-G | U83: Nueva | X83: Guzmán Nacich | Z83: Semana 3 Mayo Forzado | AA83: LP159 | AB83: 1320948-1 | AC83: =Pendientes!$Q83-Pendientes!$B83 -> 9 | AD83: =VLOOKUP(Pendientes!$AC83,Hoja1!A:B,2,TRUE) -> Entre 5 y 10 dias
A84: LLP160 | B84: 2019-04-30 | C84: Lucrecia | D84: Adelanto | E84: NO | F84: NO | G84: NO | H84: NO | I84: NO | J84: NO | K84: NO | L84: SI | M84: NO | N84: solicitado por HR | O84: FIN | P84: 7000080166 | Q84: 2019-05-09 | T84: ODV-065R15M18J-G | U84: Nueva | X84: Guzmán Nacich | Z84: Semana 3 Mayo Forzado | AA84: LP160 | AB84: 1320940-1 | AC84: =Pendientes!$Q84-Pendientes!$B84 -> 9 | AD84: =VLOOKUP(Pendientes!$AC84,Hoja1!A:B,2,TRUE) -> Entre 5 y 10 dias
A85: LLP161 | B85: 2019-04-30 | C85: Ricky | D85: Adelanto | E85: Si | F85: NO | G85: NO | H85: NO | I85: NO | J85: NO | K85: SI | L85: NO | M85: NO | N85: solicitado por HR | O85: FIN | P85: 7000080151 | Q85: 2019-05-07 | S85: DC4 + DC3 Sec | T85: DPDB 15M18JG | U85: Nueva | X85: Sidaco | Y85: Prio 1 | Z85: Semana 3 Mayo | AA85: LP161 | AB85: 1312798-1 | AC85: =Pendientes!$Q85-Pendientes!$B85 -> 7 | AD85: =VLOOKUP(Pendientes!$AC85,Hoja1!A:B,2,TRUE) -> Entre 5 y 10 dias
A86: LLP162 | B86: 2019-04-30 | C86: Lucrecia | D86: Adelanto | E86: NO | F86: NO | G86: NO | H86: NO | I86: NO | J86: NO | K86: NO | L86: SI | M86: NO | N86: solicitado por HR | O86: FIN | P86: 7000080166 | Q86: 2019-05-09 | T86: ODV-065R15M18J-G | U86: Nueva | X86: Guzmán Nacich | Z86: Semana 3 Mayo Forzado | AA86: LP162 | AB86: 1320939-1 | AC86: =Pendientes!$Q86-Pendientes!$B86 -> 9 | AD86: =VLOOKUP(Pendientes!$AC86,Hoja1!A:B,2,TRUE) -> Entre 5 y 10 dias
A87: LLP163 | B87: 2019-04-30 | C87: Lucrecia | D87: Adelanto | E87: NO | F87: NO | G87: NO | H87: NO | I87: NO | J87: NO | K87: NO | L87: SI | M87: NO | N87: solicitado por HR | O87: FIN | P87: 7000080166 | Q87: 2019-05-09 | T87: ODV-065R15M18J-G | U87: Nueva | X87: Guzmán Nacich | Z87: Semana 3 Mayo Forzado | AA87: LP163 | AB87: 1320927-1 | AC87: =Pendientes!$Q87-Pendientes!$B87 -> 9 | AD87: =VLOOKUP(Pendientes!$AC87,Hoja1!A:B,2,TRUE) -> Entre 5 y 10 dias
A88: LM0005 | C88: Barbara | O88: FIN | P88: 7000079520/7000079521 | Q88: 2019-04-01 | X88: PEM | Y88: 0 | Z88: Fin Semana 4 Abril | AA88: M0005 | AB88: 1254606-1 | AC88: =Pendientes!$Q88-Pendientes!$B88 -> 43556 | AD88: =VLOOKUP(Pendientes!$AC88,Hoja1!A:B,2,TRUE) -> Mas de 10 días
A89: LMC004 | C89: Rodrigo | D89: Adelanto | O89: FIN | P89: 7000079482 | Q89: 2019-03-29 | X89: Sidaco | Y89: 0 | AA89: MC004 | AC89: =Pendientes!$Q89-Pendientes!$B89 -> 43553 | AD89: =VLOOKUP(Pendientes!$AC89,Hoja1!A:B,2,TRUE) -> Mas de 10 días
A90: LMC017 | C90: Rodrigo | D90: Adelanto | O90: FIN | P90: 7000079483 | Q90: 2019-03-29 | X90: Sidaco | Y90: 0 | AA90: MC017 | AC90: =Pendientes!$Q90-Pendientes!$B90 -> 43553 | AD90: =VLOOKUP(Pendientes!$AC90,Hoja1!A:B,2,TRUE) -> Mas de 10 días
A91: LMC028 | C91: Rodrigo | D91: Adelanto | O91: FIN | P91: 7000079485 | Q91: 2019-03-29 | X91: SIdaco | Y91: 0 | AA91: MC028 | AC91: =Pendientes!$Q91-Pendientes!$B91 -> 43553 | AD91: =VLOOKUP(Pendientes!$AC91,Hoja1!A:B,2,TRUE) -> Mas de 10 días
A92: LMC038 | C92: Rodrigo | D92: Adelanto | O92: FIN | P92: 7000079484 | Q92: 2019-03-29 | X92: Sidaco | Y92: 0 | AA92: MC038 | AC92: =Pendientes!$Q92-Pendientes!$B92 -> 43553 | AD92: =VLOOKUP(Pendientes!$AC92,Hoja1!A:B,2,TRUE) -> Mas de 10 días
A93: LMC207 | B93: 02/05/2019 | C93: Lucrecia | D93: Adelanto | E93: No | F93: Si | G93: No | H93: No | I93: Si | J93: No | K93: Si | L93: No | M93: No | N93: La información no estaba en BPM, apareció cargado y por mail luego de una semana. | O93: FIN | P93: 7000080161 | Q93: 2019-05-08 | S93: Es un proyecto que vino por fuera del circuito. Las ingenierias tienen discrepancias. | T93: OMNI outdoor | U93: Existente | X93: PEM | Y93: 0 | Z93: Semana 3 Mayo | AA93: MC207 | AB93: 1250499-1 | AC93: =Pendientes!$Q93-Pendientes!$B93 -> 6 | AD93: =VLOOKUP(Pendientes!$AC93,Hoja1!A:B,2,TRUE) -> Entre 5 y 10 dias
A94: LMC213 | B94: 02/05/2019 | C94: Lucrecia | D94: Adelanto | E94: No | F94: Si | G94: No | H94: No | I94: Si | J94: No | K94: Si | L94: No | M94: No | N94: La información no estaba en BPM, apareció cargado y por mail luego de una semana. | O94: FIN | P94: 7000080162 | Q94: 2019-05-08 | S94: Es un proyecto que vino por fuera del circuito. Las ingenierias tienen discrepancias. | T94: OMNI outdoor | U94: Existente | X94: PEM | Z94: Semana 3 Mayo | AA94: MC213 | AC94: =Pendientes!$Q94-Pendientes!$B94 -> 6 | AD94: =VLOOKUP(Pendientes!$AC94,Hoja1!A:B,2,TRUE) -> Entre 5 y 10 dias
A95: LMC215 | C95: Barbara | O95: FIN | P95: 7000079885 | Q95: 2019-04-24 | X95: PEM | Y95: 0 | Z95: Fin Semana 4 Abril | AA95: MC215 | AB95: 1148289-1 | AC95: =Pendientes!$Q95-Pendientes!$B95 -> 43579 | AD95: =VLOOKUP(Pendientes!$AC95,Hoja1!A:B,2,TRUE) -> Mas de 10 días
A96: LOS014 | B96: 2019-04-30 | C96: Barbara | D96: Alta | E96: SI | F96: NO | G96: NO | H96: NO | I96: NO | J96: NO | K96: SI | L96: NO | M96: NO | O96: FIN-A | P96: 7000080051 | Q96: 2019-05-03 | S96: Las baterias salen de la solpe 7000079999 | T96: ASI4517R3v06 | U96: Nueva | X96: CIS SRL | Y96: Prio 1 | Z96: Semana 3 Mayo | AA96: OS014 | AB96: 1302248-1 | AC96: =Pendientes!$Q96-Pendientes!$B96 -> 3 | AD96: =VLOOKUP(Pendientes!$AC96,Hoja1!A:B,2,TRUE) -> Entre 3 y 5 dias
A97: LQCM12 | B97: 2019-04-12 | C97: Ricky | D97: Adelanto | E97: No | F97: No | G97: No | H97: No | I97: No | J97: No | K97: No | L97: SI | M97: No | N97: 4 RRU’s 3971 de B4 (4T4R | O97: FIN | P97: 7000079869 | Q97: 2019-04-24 | S97: Fri Music | X97: PEM | Y97: 0 | AA97: QCM12 | AC97: =Pendientes!$Q97-Pendientes!$B97 -> 12 | AD97: =VLOOKUP(Pendientes!$AC97,Hoja1!A:B,2,TRUE) -> Mas de 10 días
A98: LQN084 | C98: Pendiente | O98: A REASIGNAR CONTRATA | X98: Sin Asignacion | Y98: 0 | Z98: Vaca Muerta | AA98: QN084 | AB98: 516210-1 | AC98: =Pendientes!$Q98-Pendientes!$B98 -> 0 | AD98: =VLOOKUP(Pendientes!$AC98,Hoja1!A:B,2,TRUE) -> en 24hs
A99: LQW018 | C99: RICKY | O99: FIN | P99: 7000079570 / 7000079573 | Q99: 2019-04-04 | X99: PEM | Y99: 0 | Z99: Fin Semana 2 Abril | AA99: QW018 | AB99: 1130671-1 | AC99: =Pendientes!$Q99-Pendientes!$B99 -> 43559 | AD99: =VLOOKUP(Pendientes!$AC99,Hoja1!A:B,2,TRUE) -> Mas de 10 días
A100: LRN015 | C100: Ricky | N100: Adelanto Mario | O100: FIN | P100: 69439 | Q100: 2019-04-12 | X100: Huawei | Y100: 0 | Z100: Pendiente Ingeniería | AA100: RN015 | AB100: 1291095-1 | AC100: =Pendientes!$Q100-Pendientes!$B100 -> 43567 | AD100: =VLOOKUP(Pendientes!$AC100,Hoja1!A:B,2,TRUE) -> Mas de 10 días
A101: LRN078 | B101: 2019-03-11 | K101: planilla ok 2019 | N101: ok stock | O101: FIN | P101: 7000079204 | Q101: 2019-03-12 | T101: RRZZ (AQU4518R24+ AAU3910) | X101: Sidaco | Y101: 0 | Z101: Fin Semana 4 Marzo | AA101: RN078 | AB101: 888896-1 | AC101: =Pendientes!$Q101-Pendientes!$B101 -> 1 | AD101: =VLOOKUP(Pendientes!$AC101,Hoja1!A:B,2,TRUE) -> en 24hs
A102: LRN344 | B102: 2019-03-11 | K102: Validar planilla 2016 | N102: ok stock | O102: FIN | P102: 7000079206 | Q102: 2019-03-12 | T102: Hexabanda Chica | X102: Sidaco | Y102: 0 | Z102: Fin Semana 2 Marzo | AA102: RN344 | AB102: 651468-1 | AC102: =Pendientes!$Q102-Pendientes!$B102 -> 1 | AD102: =VLOOKUP(Pendientes!$AC102,Hoja1!A:B,2,TRUE) -> en 24hs
A103: LSC044 | B103: 2019-03-13 | N103: ok stock | O103: FIN | P103: 70000079244 | Q103: 2019-03-13 | X103: Sidaco | Y103: 0 | Z103: Fin Semana 2 Marzo | AA103: SC044 | AB103: 1102100-1 | AC103: =Pendientes!$Q103-Pendientes!$B103 -> 0 | AD103: =VLOOKUP(Pendientes!$AC103,Hoja1!A:B,2,TRUE) -> en 24hs
A104: LSR319 | N104: ok stock | O104: FIN | P104: 7000079309 | Q104: 2019-03-18 | T104: ODV-065R16M18JJG / 4000084591 | X104: Sidaco | Y104: 0 | Z104: Fin Semana 2 Marzo | AA104: SR319 | AB104: 916499-1 | AC104: =Pendientes!$Q104-Pendientes!$B104 -> 43542 | AD104: =VLOOKUP(Pendientes!$AC104,Hoja1!A:B,2,TRUE) -> Mas de 10 días
A105: LSR609 | B105: 2019-03-11 | C105: Rodrigo | E105: No | F105: No | G105: No | H105: No | I105: No | J105: No | K105: No | L105: No | M105: No | N105: Falta definicion de RRU, Energia desactualizada , sin planilla de materiales / verificar tipo de antena | O105: PENDIENTE INGENIERIA + ENERGIA | T105: ATR4518R6 | X105: Ericsson | Y105: Prio 2 | Z105: Semana 4 Mayo | AA105: SR609 | AB105: 540476-1 | AC105: =Pendientes!$Q105-Pendientes!$B105 -> -43535 | AD105: =VLOOKUP(Pendientes!$AC105,Hoja1!A:B,2,TRUE) -> 
A106: LTE010 | B106: 2019-04-29 | C106: Rodrigo | D106: Alta | E106: Si | F106: No | G106: No | H106: No | I106: No | J106: No | K106: Si | L106: No | M106: No | N106: antena sin stock ASI4517R3V06 | O106: FIN | P106: 7000079990/7000079991/7000079826 | Q106: 2019-04-29 | S106: Se cambio por ODI2-065R16MJJ02-GQ V1 solpe 7000079991 | T106: ASI4517R3V06 | U106: Nueva | X106: CIS SRL | Y106: 0 | Z106: Fin Semana 2 Mayo | AA106: TE011 | AB106: 1302205-1 | AC106: =Pendientes!$Q106-Pendientes!$B106 -> 0 | AD106: =VLOOKUP(Pendientes!$AC106,Hoja1!A:B,2,TRUE) -> en 24hs
A107: LUE205 | C107: Barbara | O107: FIN | P107: 7000079691 | Q107: 2019-04-10 | X107: PEM | Y107: 0 | Z107: Fin Semana 4 Abril | AA107: UE205 | AB107: 1135880-1 | AC107: =Pendientes!$Q107-Pendientes!$B107 -> 43565 | AD107: =VLOOKUP(Pendientes!$AC107,Hoja1!A:B,2,TRUE) -> Mas de 10 días
A108: LUE207 | C108: Barbara | O108: FIN | P108: 7000079691 | Q108: 2019-04-10 | X108: PEM | Y108: 0 | Z108: Fin Semana 4 Abril | AA108: UE207 | AB108: 1263549-1 | AC108: =Pendientes!$Q108-Pendientes!$B108 -> 43565 | AD108: =VLOOKUP(Pendientes!$AC108,Hoja1!A:B,2,TRUE) -> Mas de 10 días
A109: LXC349 | C109: Barbara | K109: fuerza OK | N109: Faltan los planos | O109: FIN | P109: 7000079667/7000079668 | Q109: 2019-04-11 | T109: Mudanza del GXC049. Configuración (3x2). ATR4518R6 (usar puerto libre de alta para 2G diplexado con 3G mudanza del XC049 - sitio NO RAN | X109: CIS SRL | Y109: 0 | Z109: Fin Semana 4 Abril | AA109: XC349 | AB109: 1285183-1 | AC109: =Pendientes!$Q109-Pendientes!$B109 -> 43566 | AD109: =VLOOKUP(Pendientes!$AC109,Hoja1!A:B,2,TRUE) -> Mas de 10 días
A110: LXC615 | C110: Lucrecia | O110: FIN | P110: 7000079497 / 7000079498 | Q110: 2019-03-29 | T110: ATR4518R6 | X110: CIS SRL | Y110: 0 | Z110: Fin Semana 4 Abril | AA110: XC615 | AB110: 1287412-1 | AC110: =Pendientes!$Q110-Pendientes!$B110 -> 43553 | AD110: =VLOOKUP(Pendientes!$AC110,Hoja1!A:B,2,TRUE) -> Mas de 10 días
A111: LYE002 | B111: 2019-04-26 | C111: Barbara | D111: Alta | E111: Si | F111: No | G111: No | H111: Incompleto | I111: No | J111: No | K111: Si | L111: No | M111: No | N111: Antena ASI4517R3 | O111: FIN-A | P111: 7000079967 | Q111: 2019-04-29 | S111: Se cambia antena por ODI2-065R16MJJ-GQ ( Hexa grande). Falta segunda solpe | T111: ASI4517R3 | U111: Nueva | W111: CIS SRL | X111: CIS SRL | Y111: 0 | Z111: Fin Semana 2 Mayo | AA111: YE002 | AB111: 1302348-1 | AC111: =Pendientes!$Q111-Pendientes!$B111 -> 3 | AD111: =VLOOKUP(Pendientes!$AC111,Hoja1!A:B,2,TRUE) -> Entre 3 y 5 dias
A112: LYE004 | B112: 2019-05-02 | C112: Cristian | O112: TO DO | X112: Multiradio | Y112: Prio 1 | Z112: Pendiente Ingeniería | AA112: YE004 | AC112: =Pendientes!$Q112-Pendientes!$B112 -> -43587 | AD112: =VLOOKUP(Pendientes!$AC112,Hoja1!A:B,2,TRUE) -> 
A113: LYN001 | B113: 2019-05-02 | C113: Cristian | O113: TO DO | X113: Multiradio | Y113: Prio 1 | Z113: Semana 4 Mayo | AA113: YN001 | AC113: =Pendientes!$Q113-Pendientes!$B113 -> -43587 | AD113: =VLOOKUP(Pendientes!$AC113,Hoja1!A:B,2,TRUE) -> 
A114: LZW012 | B114: 2019-04-29 | C114: Barbara | D114: Alta | O114: FIN-A | P114: 7000080017 | Q114: 2019-05-02 | S114: FALTA SOLPE POR ANTENAS POR FALTA DE STOCK | T114: ASI4517R3v06 | U114: Nueva | X114: CIS SRL | Y114: Prio 1 | Z114: Ver Planificación Renta TECO | AA114: ZW012 | AB114: 1302227-1 | AC114: =Pendientes!$Q114-Pendientes!$B114 -> 3 | AD114: =VLOOKUP(Pendientes!$AC114,Hoja1!A:B,2,TRUE) -> Entre 3 y 5 dias
A115: MAC301 | C115: RICKY | D115: Adelanto | O115: FIN | P115: 7000079637 | Q115: 2019-04-09 | X115: CIS SRL | Y115: 0 | Z115: Fin Semana 2 Marzo | AA115: AC301 | AB115: 905470-1 | AC115: =Pendientes!$Q115-Pendientes!$B115 -> 43564 | AD115: =VLOOKUP(Pendientes!$AC115,Hoja1!A:B,2,TRUE) -> Mas de 10 días
A116: MAN003 | B116: 2019-04-29 | C116: Rodrigo | D116: Alta | E116: Si | F116: No | G116: No | H116: No | I116: No | J116: No | K116: Si | L116: No | M116: No | N116: Antena sin stock ODI2-065R16MJJ02-GQ V1 | O116: FIN | P116: 7000079958/7000079959 | Q116: 2019-04-29 | S116: Esperar la entrada del catálogo 2000018376. ODI2-065R16MJJ02-GQ V1 - solpe 7000079959 | T116: ODI2-065R16MJJ02-GQ V1 | U116: Nueva | W116: CIS SRL | X116: CIS SRL | Y116: 0 | Z116: Fin Semana 2 Mayo | AA116: AN003 | AB116: 905472-1 | AC116: =Pendientes!$Q116-Pendientes!$B116 -> 0 | AD116: =VLOOKUP(Pendientes!$AC116,Hoja1!A:B,2,TRUE) -> en 24hs
A117: MAN057 | B117: 2019-05-07 | C117: Barbara | E117: Si | F117: No | G117: No | H117: No | I117: No | J117: No | K117: No | L117: Si | M117: Si | N117: 10/05 RRU Y BBU Faltante HW para RAN 1 | O117: SIN STOCK | X117: CIS SRL | Z117: Semana 1 Junio | AA117: AN057 | AB117: 905482-1 | AC117: =Pendientes!$Q117-Pendientes!$B117 -> -43592 | AD117: =VLOOKUP(Pendientes!$AC117,Hoja1!A:B,2,TRUE) -> 
A118: MAW008 | B118: 2019-03-11 | C118: Lucrecia | K118: RDA debe confirmar antenas | N118: ok stock | O118: FIN | P118: 700079311 | Q118: 2019-03-18 | T118: AQU4518R24 | X118: CIS SRL | Y118: 0 | Z118: Fin Semana 2 Marzo | AA118: AW008 | AB118: 1239123-1 | AC118: =Pendientes!$Q118-Pendientes!$B118 -> 7 | AD118: =VLOOKUP(Pendientes!$AC118,Hoja1!A:B,2,TRUE) -> Entre 5 y 10 dias
A119: MBA034 | C119: Barbara | K119: Energia OK | N119: planos ok 12-4-19 | O119: FIN | P119: 7000077608 | Q119: 2019-04-12 | X119: Ericsson | Y119: 0 | Z119: Fin Semana 2 Abril | AA119: BA034 | AB119: 1113739-1 | AC119: =Pendientes!$Q119-Pendientes!$B119 -> 43567 | AD119: =VLOOKUP(Pendientes!$AC119,Hoja1!A:B,2,TRUE) -> Mas de 10 días
A120: MBB475 | O120: FIN | P120: 7000079459/7000079508 | Q120: 2019-03-29 | X120: Guzmán Nacich | Y120: 0 | Z120: Fin Semana 4 Abril | AA120: BB475 | AB120: 1109698-1 | AC120: =Pendientes!$Q120-Pendientes!$B120 -> 43553 | AD120: =VLOOKUP(Pendientes!$AC120,Hoja1!A:B,2,TRUE) -> Mas de 10 días
A121: MBB482 | O121: FIN | P121: 7000079247 | Q121: 2019-03-29 | X121: Guzmán Nacich | Y121: 0 | Z121: Fin Semana 2 Marzo | AA121: BB482 | AB121: 1109694-1 | AC121: =Pendientes!$Q121-Pendientes!$B121 -> 43553 | AD121: =VLOOKUP(Pendientes!$AC121,Hoja1!A:B,2,TRUE) -> Mas de 10 días
A122: MBC754 | B122: 2019-05-07 | C122: Ricky | O122: TO DO | X122: Sidaco | Z122: Semana 4 Mayo | AA122: BC754 | AB122: 1250356-1 | AC122: =Pendientes!$Q122-Pendientes!$B122 -> -43592 | AD122: =VLOOKUP(Pendientes!$AC122,Hoja1!A:B,2,TRUE) -> 
A123: MBM129 | B123: 11/3/2019 | C123: Rodrigo | K123: No | N123: RAN 2 - Ericsson Mudanza del sitio BM029 | O123: FIN | P123: 7000079199 | Q123: 2019-03-12 | X123: Ericsson | Y123: 0 | Z123: Fin Semana 2 Marzo | AA123: BM129 | AB123: 1279214-1 | AC123: =Pendientes!$Q123-Pendientes!$B123 -> 1 | AD123: =VLOOKUP(Pendientes!$AC123,Hoja1!A:B,2,TRUE) -> en 24hs
A124: MBM795 | B124: 2019-04-25 | C124: Lucrecia | D124: Alta | E124: NO | F124: No | G124: No | H124: No | I124: No | J124: No | K124: No | L124: Si | M124: No | N124: No cuenta con planilla de fuerza y tampoco hwr nodo | O124: FIN-A | P124: Cross Dock 7000080085 | Q124: 2019-05-06 | S124: se pidio frenar el pedido 26/04/2019. Salio solpe de Cross Dock Falta solpe de Fuerza | T124: ODI2-065R16MJJ-GQ | U124: Nueva | X124: Guzmán Nacich | Y124: Prio 1 | Z124: Semana 3 Mayo | AA124: BM795 | AB124: 944184-1 | AC124: =Pendientes!$Q124-Pendientes!$B124 -> 11 | AD124: =VLOOKUP(Pendientes!$AC124,Hoja1!A:B,2,TRUE) -> Mas de 10 días
A125: MBN131 | C125: Ricky | N125: Sin Stock de antenas | O125: SIN STOCK | T125: ODI2-065R16MJJ-GQ ( Hexa grande) | X125: Sidaco | Y125: Prio 2 | Z125: Semana 4 Mayo | AA125: BN131 | AB125: 1254669-1 | AC125: =Pendientes!$Q125-Pendientes!$B125 -> 0 | AD125: =VLOOKUP(Pendientes!$AC125,Hoja1!A:B,2,TRUE) -> en 24hs
A126: MBN163 | C126: Lucrecia | N126: a verificar estructura por cambio de antena AIR32 x HEXA | O126: FIN | P126: 7000079657 | Q126: 2019-04-09 | S126: Cambia AIR32 x Hexabanda | T126: HEXABANDA | X126: Sidaco | Y126: 0 | Z126: Fin Semana 4 Abril | AA126: BN163 | AB126: 1254672-1 | AC126: =Pendientes!$Q126-Pendientes!$B126 -> 43564 | AD126: =VLOOKUP(Pendientes!$AC126,Hoja1!A:B,2,TRUE) -> Mas de 10 días
A127: MBN169 | K127: ok fuerza | O127: FIN | P127: 7000079422 | Q127: 2019-03-25 | T127: ODI-065R15M18JJ-G= 2000018373 | X127: Sidaco | Y127: 0 | Z127: Fin Semana 1 Abril | AA127: BN169 | AB127: 1254673-1 | AC127: =Pendientes!$Q127-Pendientes!$B127 -> 43549 | AD127: =VLOOKUP(Pendientes!$AC127,Hoja1!A:B,2,TRUE) -> Mas de 10 días
A128: MBN273 | C128: Lucrecia | O128: FIN | P128: 7000079541 | Q128: 2019-04-01 | T128: ODV-065R16M18J-G | X128: Sidaco | Y128: 0 | Z128: Fin Semana 4 Abril | AA128: BN273 | AB128: 1254683-1 | AC128: =Pendientes!$Q128-Pendientes!$B128 -> 43556 | AD128: =VLOOKUP(Pendientes!$AC128,Hoja1!A:B,2,TRUE) -> Mas de 10 días
A129: MBN327 | C129: Rodrigo | O129: FIN | P129: 7000079626 | Q129: 2019-04-08 | X129: Sidaco | Y129: 0 | Z129: Fin Semana 4 Abril | AA129: BN327 | AB129: 1254684-1 | AC129: =Pendientes!$Q129-Pendientes!$B129 -> 43563 | AD129: =VLOOKUP(Pendientes!$AC129,Hoja1!A:B,2,TRUE) -> Mas de 10 días
A130: MBO013 | B130: 2019-04-25 | C130: Lucrecia | D130: Alta | E130: NO | F130: SI | G130: NO | H130: NO | I130: NO | J130: NO | K130: NO | L130: SI | M130: NO | N130: DWG Desactualizado - SE RECIBE MAIL 3/5/19 CON PLANOS Y FUERZA | O130: FIN | P130: 7000080134 | Q130: 2019-05-08 | S130: Ingenieria incompleta, se pedia instalar 1900 | T130: ODV065R16M18JJG | U130: Nueva | X130: PEM | Y130: Prio 1 | Z130: Semana 3 Mayo | AA130: BO013 | AB130: 1100978-1 | AC130: =Pendientes!$Q130-Pendientes!$B130 -> 13 | AD130: =VLOOKUP(Pendientes!$AC130,Hoja1!A:B,2,TRUE) -> Mas de 10 días
A131: MBO018 | C131: Ricky | O131: TO DO | X131: Sidaco | Y131: Prio 1 | Z131: Semana 4 Mayo | AA131: BO018 | AB131: 1331411-1 | AC131: =Pendientes!$Q131-Pendientes!$B131 -> 0 | AD131: =VLOOKUP(Pendientes!$AC131,Hoja1!A:B,2,TRUE) -> en 24hs
A132: MBO133 | B132: 2019-05-02 | C132: Barbara | D132: Alta | E132: SI | F132: No | G132: No | H132: No | I132: No | J132: No | K132: Si | L132: No | M132: No | O132: FIN-A | P132: 7000080027 | Q132: 2019-05-03 | S132: Queda pendiente solpe para la antena. | T132: ASI4517R3v06 | U132: Nueva | W132: CIS SRL | X132: CIS SRL | Y132: Prio 1 | Z132: Semana 3 Mayo | AA132: BO133 | AB132: 1254836-1 | AC132: =Pendientes!$Q132-Pendientes!$B132 -> 1 | AD132: =VLOOKUP(Pendientes!$AC132,Hoja1!A:B,2,TRUE) -> en 24hs
A133: MBO153 | C133: Lucrecia | K133: Energia OK | O133: FIN | P133: 7000079826 | Q133: 2019-04-22 | T133: ASI4517R3V06 | X133: CIS SRL | Y133: 0 | Z133: Fin Semana 1 Mayo | AA133: BO153 | AB133: 1254696-1 | AC133: =Pendientes!$Q133-Pendientes!$B133 -> 43577 | AD133: =VLOOKUP(Pendientes!$AC133,Hoja1!A:B,2,TRUE) -> Mas de 10 días
A134: MBO181 | C134: Lucrecia | O134: FIN | P134: 7000079838 | Q134: 2019-04-23 | X134: CIS SRL | Y134: 0 | Z134: Semana 3 Mayo | AA134: BO181 | AB134: 1254698-1 | AC134: =Pendientes!$Q134-Pendientes!$B134 -> 43578 | AD134: =VLOOKUP(Pendientes!$AC134,Hoja1!A:B,2,TRUE) -> Mas de 10 días
A135: MBO185 | B135: 2019-04-29 | C135: Barbara | D135: Alta | O135: FIN-A | P135: 7000079985 | Q135: 2019-05-02 | S135: FALTA SOLPE POR ANTENAS POR FALTA DE STOCK | W135: CIS SRL | X135: CIS SRL | Y135: Prio 2 | Z135: Semana 3 Mayo | AA135: BO185 | AB135: 1254808-1 | AC135: =Pendientes!$Q135-Pendientes!$B135 -> 3 | AD135: =VLOOKUP(Pendientes!$AC135,Hoja1!A:B,2,TRUE) -> Entre 3 y 5 dias
A136: MBO192 | C136: Barbara | N136: Se remplazó la ODV-065R14M17JJ-G COMBA TRIBANDA por CE_ANTP_TB_2H1L_SBNHH1D65A. | O136: FIN | P136: 7000079826 | Q136: 2019-04-24 | X136: CIS SRL | Y136: 0 | Z136: Fin Semana 2 Mayo | AA136: BO192 | AB136: 1254810-1 | AC136: =Pendientes!$Q136-Pendientes!$B136 -> 43579 | AD136: =VLOOKUP(Pendientes!$AC136,Hoja1!A:B,2,TRUE) -> Mas de 10 días
A137: MBO206 | C137: Barbara | O137: FIN | P137: 7000079900 | Q137: 2019-04-25 | X137: CIS SRL | Y137: 0 | Z137: Fin Semana 2 Mayo | AA137: BO206 | AB137: 1254699-1 | AC137: =Pendientes!$Q137-Pendientes!$B137 -> 43580 | AD137: =VLOOKUP(Pendientes!$AC137,Hoja1!A:B,2,TRUE) -> Mas de 10 días
A138: MBO341 | C138: Barbara | O138: FIN | P138: 7000079624 | Q138: 2019-04-08 | X138: Sidaco | Y138: 0 | Z138: Fin Semana 4 Abril | AA138: BO341 | AB138: 1254823-1 | AC138: =Pendientes!$Q138-Pendientes!$B138 -> 43563 | AD138: =VLOOKUP(Pendientes!$AC138,Hoja1!A:B,2,TRUE) -> Mas de 10 días
A139: MBS036 | C139: Lucrecia | K139: OK | N139: No Liberado es operadora | O139: FIN | P139: 7000079835 | Q139: 2019-04-22 | T139: Requiere antena AIR32, sin stock./ cambia por ASI4517R3v06 | X139: Sidaco | Y139: 0 | Z139: Pendiente Ingeniería | AA139: BS036 | AB139: 1254826-1 | AC139: =Pendientes!$Q139-Pendientes!$B139 -> 43577 | AD139: =VLOOKUP(Pendientes!$AC139,Hoja1!A:B,2,TRUE) -> Mas de 10 días
A140: MBS114 | C140: Rodrigo | O140: FIN | P140: 7000079677 | Q140: 2019-04-10 | X140: Sidaco | Y140: 0 | Z140: Fin Semana 4 Abril | AA140: BS114 | AB140: 1254720-1 | AC140: =Pendientes!$Q140-Pendientes!$B140 -> 43565 | AD140: =VLOOKUP(Pendientes!$AC140,Hoja1!A:B,2,TRUE) -> Mas de 10 días
A141: MBS129 | C141: Ricky | K141: fuerza ok | N141: Planos OK / TO DO / Hexa que ingresan 140 unidades el 15 de Abril | O141: SIN STOCK | T141: ODI2-065R16MJJ-GQ ( Hexa grande) | X141: Sidaco | Y141: 0 | Z141: Fin Semana 4 Abril | AA141: BS129 | AB141: 1254723-1 | AC141: =Pendientes!$Q141-Pendientes!$B141 -> 0 | AD141: =VLOOKUP(Pendientes!$AC141,Hoja1!A:B,2,TRUE) -> en 24hs
A142: MBS136 | C142: Ricky | K142: OK | N142: mc condicionante se cierra semana 22 de abril | O142: SIN STOCK | T142: ODI2-065R16MJJ-GQ ( Hexa grande) | X142: Sidaco | Y142: 0 | Z142: Pendiente Ingeniería | AA142: BS136 | AB142: 1254725-1 | AC142: =Pendientes!$Q142-Pendientes!$B142 -> 0 | AD142: =VLOOKUP(Pendientes!$AC142,Hoja1!A:B,2,TRUE) -> en 24hs
A143: MBS155 | C143: Ricky | K143: ok fuerza | N143: Sin Stock | O143: SIN STOCK | T143: ODI2-065R16MJJ-GQ ( Hexa grande) | X143: Sidaco | Y143: Prio 2 | Z143: Semana 4 Mayo | AA143: BS155 | AB143: 1254729-1 | AC143: =Pendientes!$Q143-Pendientes!$B143 -> 0 | AD143: =VLOOKUP(Pendientes!$AC143,Hoja1!A:B,2,TRUE) -> en 24hs
A144: MBS160 | C144: Ricky | K144: se conecta a planta existente | N144: TO DO / Hexa que ingresan 140 unidades el 15 de Abril | O144: SIN STOCK | T144: ODI2-065R16MJJ-GQ ( Hexa grande) | X144: Sidaco | Y144: 0 | Z144: Fin Semana 2 Abril | AA144: BS160 | AB144: 1254731-1 | AC144: =Pendientes!$Q144-Pendientes!$B144 -> 0 | AD144: =VLOOKUP(Pendientes!$AC144,Hoja1!A:B,2,TRUE) -> en 24hs
A145: MBS169 | C145: Ricky | N145: sin stock | O145: SIN STOCK | T145: TNA770A00RI | X145: Sidaco | Y145: Prio 2 | Z145: Semana 4 Mayo | AA145: BS169 | AB145: 1254650-1 | AC145: =Pendientes!$Q145-Pendientes!$B145 -> 0 | AD145: =VLOOKUP(Pendientes!$AC145,Hoja1!A:B,2,TRUE) -> en 24hs
A146: MBS206 | B146: 2019-04-30 | C146: Ricky | E146: SI | F146: NO | G146: NO | H146: Incompleto | I146: NO | J146: NO | K146: SI | L146: NO | M146: NO | O146: FIN | P146: 7000080143 | Q146: 2019-05-07 | S146: 0 | T146: Ant existentes + 3 DipB | U146: Nueva | X146: Sidaco | Y146: Prio 1 | Z146: Semana 3 Mayo | AA146: BS206 | AB146: 1254737-1 | AC146: =Pendientes!$Q146-Pendientes!$B146 -> 7 | AD146: =VLOOKUP(Pendientes!$AC146,Hoja1!A:B,2,TRUE) -> Entre 5 y 10 dias
A147: MBS229 | C147: Ricky | K147: OK | N147: ANTENA TNA770A00RI sin stock | O147: SIN STOCK | T147: TNA770A00RI | X147: Sidaco | Y147: Prio 2 | Z147: Semana 4 Mayo | AA147: BS229 | AB147: 1254739-1 | AC147: =Pendientes!$Q147-Pendientes!$B147 -> 0 | AD147: =VLOOKUP(Pendientes!$AC147,Hoja1!A:B,2,TRUE) -> en 24hs
A148: MC010 | B148: 2019-04-25 | C148: Lucrecia | O148: FIN | P148: 7000079922 | Q148: 2019-04-25 | X148: CIS SRL | AC148: =Pendientes!$Q148-Pendientes!$B148 -> 0 | AD148: =VLOOKUP(Pendientes!$AC148,Hoja1!A:B,2,TRUE) -> en 24hs
A149: MCE017 | C149: Ricky | D149: Adelanto | O149: FIN | P149: 7000079523 | Q149: 2019-04-01 | S149: nueva estación de Subte E | X149: Multiradio | Y149: 0 | AA149: CE017 | AC149: =Pendientes!$Q149-Pendientes!$B149 -> 43556 | AD149: =VLOOKUP(Pendientes!$AC149,Hoja1!A:B,2,TRUE) -> Mas de 10 días
A150: MCE018 | C150: Ricky | D150: Adelanto | O150: FIN | P150: 7000079586 | Q150: 2019-04-05 | S150: ING. PORTICOS - CATALINAS y RETIRO | X150: Multiradio | Y150: 0 | AA150: CE018 | AC150: =Pendientes!$Q150-Pendientes!$B150 -> 43560 | AD150: =VLOOKUP(Pendientes!$AC150,Hoja1!A:B,2,TRUE) -> Mas de 10 días
A151: MCN190 | B151: 2019-05-07 | C151: Lucrecia | O151: TO DO | X151: Guzman Nacich | Z151: Semana 4 Mayo | AA151: CN190 | AB151: 1251047-1 | AC151: =Pendientes!$Q151-Pendientes!$B151 -> -43592 | AD151: =VLOOKUP(Pendientes!$AC151,Hoja1!A:B,2,TRUE) -> 
A152: MCN231 | B152: 2019-05-10 | C152: Cristian | D152: Prio 2 | E152: Si | F152: No | G152: No | H152: No | I152: No | J152: No | K152: Si | L152: No | M152: No | O152: FIN-A | P152: 7000080229 | Q152: 2019-05-13 | T152: ASI4517r3v06 | U152: Nueva | X152: Multiradio | Z152: Semana 4 Mayo | AA152: CN231 | AB152: 1254763-1 | AC152: =Pendientes!$Q152-Pendientes!$B152 -> 3 | AD152: =VLOOKUP(Pendientes!$AC152,Hoja1!A:B,2,TRUE) -> Entre 3 y 5 dias
A153: MCN349 | C153: Cristian | N153: sin stock | O153: SIN STOCK | T153: ODV-065R14M17JJ-G | X153: Multiradio | Y153: Prio 2 | Z153: Semana 4 Mayo | AA153: CN349 | AB153: 1254640-1 | AC153: =Pendientes!$Q153-Pendientes!$B153 -> 0 | AD153: =VLOOKUP(Pendientes!$AC153,Hoja1!A:B,2,TRUE) -> en 24hs
A154: MCN423 | B154: 2019-04-29 | C154: Barbara | D154: Alta | O154: FIN-A | P154: 7000079996 | Q154: 2019-04-30 | S154: FALTA SOLPE POR ANTENAS POR FALTA DE STOCK | X154: Multiradio | Y154: Prio 2 | Z154: Semana 3 Mayo | AA154: CN423 | AB154: 1255500-1 | AC154: =Pendientes!$Q154-Pendientes!$B154 -> 1 | AD154: =VLOOKUP(Pendientes!$AC154,Hoja1!A:B,2,TRUE) -> en 24hs
A155: MCN815 | B155: 2019-05-09 | C155: Lucrecia | D155: Prio 3 | E155: Si | F155: No | G155: Si | H155: Si | I155: No | J155: No | K155: No | L155: No | M155: No | N155: FINALIZADO TODO COMPLETO | O155: FIN-A | P155: 7000080213 | Q155: 2019-05-13 | T155: ASI4517R3V06 | U155: Nueva | X155: PEM | Z155: Semana 4 Mayo | AA155: CN815 | AB155: 1302916-1 | AC155: =Pendientes!$Q155-Pendientes!$B155 -> 4 | AD155: =VLOOKUP(Pendientes!$AC155,Hoja1!A:B,2,TRUE) -> Entre 3 y 5 dias
A156: MCS111 | B156: 02-05-2019 | C156: Barbara | D156: Alta | E156: Incompleto | F156: No | G156: No | H156: No | I156: No | J156: No | K156: Si | L156: No | M156: No | N156: CHEQUENDO DWG | O156: FIN | P156: 7000080192 | Q156: 2019-05-09 | T156: ODI2-065R16MJJ-GQ ( Hexa grande) | U156: Nueva | W156: CIS SRL | X156: CIS SRL | Y156: Prio 2 | Z156: Semana 3 Mayo Forzado | AA156: CS111 | AB156: 1255523-1 | AC156: =Pendientes!$Q156-Pendientes!$B156 -> 7 | AD156: =VLOOKUP(Pendientes!$AC156,Hoja1!A:B,2,TRUE) -> Entre 5 y 10 dias
A157: MCS124 | B157: 2019-04-29 | C157: Barbara | D157: Alta | O157: FIN-A | P157: 7000079999 | Q157: 2019-04-30 | S157: Se hace el pedido sin antena | W157: CIS SRL | X157: CIS SRL | Y157: Prio 2 | Z157: Fin Semana 2 Mayo | AA157: CS124 | AB157: 1251051-1 | AC157: =Pendientes!$Q157-Pendientes!$B157 -> 1 | AD157: =VLOOKUP(Pendientes!$AC157,Hoja1!A:B,2,TRUE) -> en 24hs
A158: MCS205 | C158: Ricky | K158: Energia OK | N158: planos recibidos 12-4-19 / sin stock antenas Hexa Grandes | O158: SIN STOCK | T158: ODI2-065R16MJJ-GQ ( Hexa grande) | X158: Sidaco | Y158: Prio 2 | Z158: Semana 4 Mayo | AA158: CS205 | AB158: 1342182-1 | AC158: =Pendientes!$Q158-Pendientes!$B158 -> 0 | AD158: =VLOOKUP(Pendientes!$AC158,Hoja1!A:B,2,TRUE) -> en 24hs
A159: MCS256 | C159: Ricky | D159: Media | E159: SI | F159: NO | G159: NO | H159: NO | I159: NO | J159: NO | K159: SI | L159: NO | M159: NO | N159: Cargado en la asignación a Tesur | O159: FIN-A | P159: 7000080175 | Q159: 2019-05-09 | S159: LOS PLANOS Y FUERZA SE TOMA DE LAS ASIGNACIONES DE TESUR, EN SIDACO NO HAY NADA CARGADO | T159: ASI-R3 | U159: Nueva | X159: Sidaco | Y159: Prio 2 | Z159: Semana 4 Mayo | AA159: CS256 | AB159: 1255336-1 | AC159: =Pendientes!$Q159-Pendientes!$B159 -> 43594 | AD159: =VLOOKUP(Pendientes!$AC159,Hoja1!A:B,2,TRUE) -> Mas de 10 días
A160: MCS293 | C160: Ricky | D160: Media | E160: SI | F160: NO | G160: NO | H160: NO | I160: NO | J160: NO | K160: SI | L160: NO | M160: NO | N160: Cargado en la asignación a Tesur | O160: FIN-A | P160: 7000080176 | Q160: 2019-05-09 | S160: SE USA PLANOS Y FUERZA DE TESUR, EN EL PROYECTO DE SIDACO NO HAY DATOS | T160: ASI-R3 | U160: Nueva | X160: Sidaco | Y160: Prio 2 | Z160: Semana 4 Mayo | AA160: CS293 | AB160: 1255303-1 | AC160: =Pendientes!$Q160-Pendientes!$B160 -> 43594 | AD160: =VLOOKUP(Pendientes!$AC160,Hoja1!A:B,2,TRUE) -> Mas de 10 días
A161: MCS296 | C161: Ricky | D161: Media | E161: SI | F161: NO | G161: NO | H161: NO | I161: NO | J161: NO | K161: SI | L161: NO | M161: NO | N161: Cargado en la asignación a Tesur | O161: FIN-A | P161: 7000080177 | Q161: 2019-05-09 | S161: SE USA PLANOS Y FUERZA DE TESUR, EN EL PROYECTO DE SIDACO NO HAY DATOS --- FALTA SOLPE POR ANTENA | T161: ASI-R3 | U161: Nueva | X161: Sidaco | Y161: Prio 2 | Z161: Semana 4 Mayo | AA161: CS296 | AB161: 1255271-1 | AC161: =Pendientes!$Q161-Pendientes!$B161 -> 43594 | AD161: =VLOOKUP(Pendientes!$AC161,Hoja1!A:B,2,TRUE) -> Mas de 10 días
A162: MCS311 | C162: Ricky | K162: falta fuerza | N162: sin stock | O162: SIN STOCK | T162: ODI2-065R16MJJ-GQ ( Hexa grande) | X162: Sidaco | Y162: Prio 2 | Z162: Semana 4 Mayo | AA162: CS311 | AB162: 1255272-1 | AC162: =Pendientes!$Q162-Pendientes!$B162 -> 0 | AD162: =VLOOKUP(Pendientes!$AC162,Hoja1!A:B,2,TRUE) -> en 24hs
A163: MCS352 | C163: Lucrecia | D163: Adelanto | N163: no contamos con ninguna definicion para emitir la SOLPE | O163: FIN | P163: 69396 /7000079681 | Q163: 2019-04-10 | T163: "Antena a definir por RDA" | X163: Telxius | Y163: 0 | Z163: Semana 3 Mayo | AA163: CS352 | AB163: 1342228-1 | AC163: =Pendientes!$Q163-Pendientes!$B163 -> 43565 | AD163: =VLOOKUP(Pendientes!$AC163,Hoja1!A:B,2,TRUE) -> Mas de 10 días
A164: MCU024 | B164: 2019-05-09 | C164: Lucrecia | D164: Prio 2 | O164: TO DO | X164: Guzmán Nacich | Z164: Semana 4 Mayo | AA164: CU024 | AB164: 1252156-1 | AC164: =Pendientes!$Q164-Pendientes!$B164 -> -43594 | AD164: =VLOOKUP(Pendientes!$AC164,Hoja1!A:B,2,TRUE) -> 
A165: MCU087 | B165: 2019-04-30 | C165: Ricky | E165: No | F165: NO | G165: NO | H165: NO | I165: NO | J165: NO | K165: NO | L165: Ok | M165: NO | N165: Sin Stock Antena | O165: FIN-A | P165: 7000080144 | Q165: 2019-05-07 | S165: Sin Stock Antena - DC3 + Sec + BB2 | U165: Nueva | X165: Sidaco | Y165: Prio 1 | Z165: Semana 3 Mayo | AA165: CU087 | AB165: 1320244-1 | AC165: =Pendientes!$Q165-Pendientes!$B165 -> 7 | AD165: =VLOOKUP(Pendientes!$AC165,Hoja1!A:B,2,TRUE) -> Entre 5 y 10 dias
A166: MHC020 | B166: 2019-04-29 | C166: Rodrigo | D166: Alta | E166: Si | F166: No | G166: No | H166: No | I166: No | J166: No | K166: Si | L166: No | M166: No | N166: con antena existente ATR4518R3 | O166: FIN | P166: 7000079961/7000079826 | Q166: 2019-04-29 | T166: ATR4518R3 | U166: Nueva | X166: CIS SRL | Y166: 0 | Z166: Fin Semana 2 Mayo | AA166: HC020 | AB166: 1291143-1 | AC166: =Pendientes!$Q166-Pendientes!$B166 -> 0 | AD166: =VLOOKUP(Pendientes!$AC166,Hoja1!A:B,2,TRUE) -> en 24hs
A167: MIC021 | C167: Ricky | D167: Adelanto | O167: FIN | P167: USA HW DEL IC004 | Q167: 2019-04-05 | X167: Guzmán Nacich | Y167: 0 | Z167: Fin Semana 2 Abril | AA167: IC021 | AB167: 1130647-1 | AC167: =Pendientes!$Q167-Pendientes!$B167 -> 43560 | AD167: =VLOOKUP(Pendientes!$AC167,Hoja1!A:B,2,TRUE) -> Mas de 10 días
A168: MIC024 | C168: Ricky | D168: Adelanto | O168: FIN | P168: 7000079596 | Q168: 2019-04-05 | X168: Guzmán Nacich | Y168: 0 | Z168: Fin Semana 2 Abril | AA168: IC024 | AB168: 1130605-1 | AC168: =Pendientes!$Q168-Pendientes!$B168 -> 43560 | AD168: =VLOOKUP(Pendientes!$AC168,Hoja1!A:B,2,TRUE) -> Mas de 10 días
A169: MIE001 | C169: Ricky | D169: Adelanto | O169: FIN | P169: 7000079597 | Q169: 2019-04-05 | X169: Guzmán Nacich | Y169: 0 | Z169: Revisión Ing Fin | AA169: IE001 | AB169: 840700-1 | AC169: =Pendientes!$Q169-Pendientes!$B169 -> 43560 | AD169: =VLOOKUP(Pendientes!$AC169,Hoja1!A:B,2,TRUE) -> Mas de 10 días
A170: MIN004 | O170: FIN | P170: 7000079507 | Q170: 2019-03-29 | X170: Guzmán Nacich | Y170: 0 | Z170: Fin Semana 2 Mayo | AA170: IN004 | AB170: 905658-1 | AC170: =Pendientes!$Q170-Pendientes!$B170 -> 43553 | AD170: =VLOOKUP(Pendientes!$AC170,Hoja1!A:B,2,TRUE) -> Mas de 10 días
A171: MJC004 | B171: 2019-03-07 | N171: ok stock | O171: FIN | P171: 7000079143 | Q171: 2019-03-08 | T171: Terminada | X171: Sidaco | Y171: 0 | Z171: Fin Semana 2 Marzo | AA171: JC004 | AB171: 1059182-1 | AC171: =Pendientes!$Q171-Pendientes!$B171 -> 1 | AD171: =VLOOKUP(Pendientes!$AC171,Hoja1!A:B,2,TRUE) -> en 24hs
A172: MJC006 | B172: 2019-03-07 | N172: ok stock | O172: FIN | P172: 7000079143/7000079268/7000079308 | Q172: 2019-03-08 | T172: Terminada | X172: Sidaco | Y172: 0 | Z172: Fin Semana 2 Marzo | AA172: JC006 | AB172: 905749-1 | AC172: =Pendientes!$Q172-Pendientes!$B172 -> 1 | AD172: =VLOOKUP(Pendientes!$AC172,Hoja1!A:B,2,TRUE) -> en 24hs
A173: MJC010 | B173: 2019-05-02 | C173: Cristian | D173: Alta | E173: SI | F173: NO | G173: NO | H173: Incompleto | I173: NO | J173: NO | K173: SI | L173: NO | M173: NO | N173: El plano no se condice con el hw a instalar, dice RRU´s a reutilizar cuando en ep PDG indica HW nuevo - la energia no estaba bien dimencionada en el plano, se corrigio para hacer el pedido con Ing de Fuerza | O173: FIN | P173: 7000080039 | Q173: 2019-05-03 | T173: ODI2-065R16M18J-GQ + AAUU3910 | U173: Nueva | X173: Multiradio | Y173: Prio 1 | Z173: Fin Semana 2 Mayo | AA173: JC010 | AB173: 905757-1 | AC173: =Pendientes!$Q173-Pendientes!$B173 -> 1 | AD173: =VLOOKUP(Pendientes!$AC173,Hoja1!A:B,2,TRUE) -> en 24hs
A174: MJC018 | B174: 2019-05-02 | C174: Cristian | E174: SI | F174: NO | G174: NO | H174: NO | I174: NO | J174: NO | K174: NO | L174: NO | M174: NO | N174: SIN FUERZA | O174: FIN | P174: 7000080094 | Q174: 2019-05-07 | S174: SE RESUELVE FUERZA ON LINE CON PLANIFICACION | T174: ODI2-065R16M18J-GQ + AAUU3910 | X174: Multiradio | Y174: Prio 1 | Z174: Semana 3 Mayo | AA174: JC018 | AB174: 905750-1 | AC174: =Pendientes!$Q174-Pendientes!$B174 -> 5 | AD174: =VLOOKUP(Pendientes!$AC174,Hoja1!A:B,2,TRUE) -> Entre 5 y 10 dias
A175: MJC022 | B175: 2019-05-02 | C175: Cristian | E175: SI | F175: NO | G175: NO | H175: NO | I175: NO | J175: NO | K175: SI | L175: NO | M175: NO | N175: FUERZA EXISTENTE | O175: FIN | P175: 7000080130 | Q175: 2019-05-07 | S175: FUERZA EXISTENTE | T175: ODI2-065R16M18J-GQ + AAUU3910 | U175: Existente | X175: Multiradio | Y175: Prio 1 | Z175: Semana 3 Mayo | AA175: JC022 | AB175: 905751-1 | AC175: =Pendientes!$Q175-Pendientes!$B175 -> 5 | AD175: =VLOOKUP(Pendientes!$AC175,Hoja1!A:B,2,TRUE) -> Entre 5 y 10 dias
A176: MJC025 | B176: 2019-05-02 | C176: Cristian | D176: Alta | E176: SI | F176: NO | G176: NO | H176: Incompleto | I176: NO | J176: NO | K176: SI | L176: NO | M176: NO | N176: PLANILLA MATERIALES INCOMPLETA | O176: FIN | P176: 7000080133 | Q176: 2019-05-07 | S176: ENERGIA EXISTENTE SE REUTILIZA DC2ZTE SE AGREGA DC3 SECUNDARIO | T176: ODI2-065R16M18JG-Q+AAUU3910 | U176: Nueva | X176: Multiradio | Y176: Prio 1 | Z176: Semana 3 Mayo | AA176: JC025 | AB176: 905740-1 | AC176: =Pendientes!$Q176-Pendientes!$B176 -> 5 | AD176: =VLOOKUP(Pendientes!$AC176,Hoja1!A:B,2,TRUE) -> Entre 5 y 10 dias
A177: MJC026 | B177: 2/5/2019 | C177: Cristian | D177: Alta | E177: Si | F177: No | G177: No | H177: No | I177: No | J177: No | K177: Si | L177: No | M177: No | N177: solo faltaba el detalle de los materiales | O177: FIN | P177: 7000080164 | Q177: 2019-05-08 | S177: Sale completo | T177: ODI2-065R16M18J-GQ + AAUU3910 | U177: Nueva | X177: Multiradio | Y177: Prio 1 | Z177: Semana 3 Mayo | AA177: JC026 | AB177: 905752-1 | AC177: =Pendientes!$Q177-Pendientes!$B177 -> 6 | AD177: =VLOOKUP(Pendientes!$AC177,Hoja1!A:B,2,TRUE) -> Entre 5 y 10 dias
A178: MJC030 | B178: 2019-05-02 | C178: Cristian | D178: Alta | E178: SI | F178: NO | G178: NO | H178: SI | I178: NO | J178: NO | K178: SI | L178: NO | M178: NO | O178: FIN | P178: 7000080036 | Q178: 2019-05-03 | T178: ODI2-065R16M18J-GQ + AAUU3910 | U178: Nueva | X178: Multiradio | Y178: Prio 1 | Z178: Fin Semana 2 Mayo | AA178: JC030 | AB178: 1059020-1 | AC178: =Pendientes!$Q178-Pendientes!$B178 -> 1 | AD178: =VLOOKUP(Pendientes!$AC178,Hoja1!A:B,2,TRUE) -> en 24hs
A179: MJC034 | B179: 2019-05-02 | C179: Cristian | D179: Alta | E179: SI | F179: NO | G179: NO | H179: NO | I179: NO | J179: NO | K179: SI | L179: NO | M179: NO | O179: FIN | P179: 7000080037 | Q179: 2019-05-03 | T179: ODI2-065R16M18J-GQ + AAUU3910 | U179: Nueva | X179: Multiradio | Y179: Prio 1 | Z179: Semana 3 Mayo | AA179: JC034 | AB179: 905760-1 | AC179: =Pendientes!$Q179-Pendientes!$B179 -> 1 | AD179: =VLOOKUP(Pendientes!$AC179,Hoja1!A:B,2,TRUE) -> en 24hs
A180: MJC035 | C180: Rodrigo | N180: ok stock | O180: FIN | P180: 7000079269/7000079302 | Q180: 2019-03-28 | X180: Sidaco | Y180: 0 | Z180: Fin Semana 4 Abril | AA180: JC035 | AB180: 905753-1 | AC180: =Pendientes!$Q180-Pendientes!$B180 -> 43552 | AD180: =VLOOKUP(Pendientes!$AC180,Hoja1!A:B,2,TRUE) -> Mas de 10 días
A181: MJC056 | D181: Adelanto | O181: FIN | P181: 7000079317 | Q181: 2019-04-01 | X181: Sidaco | Y181: 0 | Z181: Fin Semana 2 Abril | AA181: JC056 | AB181: 905763-1 | AC181: =Pendientes!$Q181-Pendientes!$B181 -> 43556 | AD181: =VLOOKUP(Pendientes!$AC181,Hoja1!A:B,2,TRUE) -> Mas de 10 días
A182: MJC303 | C182: Rodrigo | N182: ok stock | O182: FIN | P182: 7000079318 | Q182: 2019-03-28 | X182: Sidaco | Y182: 0 | Z182: Fin Semana 1 Abril | AA182: JC303 | AB182: 1059183-1 | AC182: =Pendientes!$Q182-Pendientes!$B182 -> 43552 | AD182: =VLOOKUP(Pendientes!$AC182,Hoja1!A:B,2,TRUE) -> Mas de 10 días
A183: MJC320 | B183: 2019-05-02 | C183: Cristian | D183: Alta | E183: SI | F183: NO | G183: NO | H183: SI | I183: NO | J183: NO | K183: SI | L183: NO | M183: NO | O183: FIN | P183: 7000080038 | Q183: 2019-05-03 | T183: ODI2-065R16M18J-GQ + AAUU3910 | U183: Nueva | X183: Multiradio | Y183: Prio 1 | Z183: Fin Semana 2 Mayo | AA183: JC320 | AB183: 1059162-1 | AC183: =Pendientes!$Q183-Pendientes!$B183 -> 1 | AD183: =VLOOKUP(Pendientes!$AC183,Hoja1!A:B,2,TRUE) -> en 24hs
A184: MJC326 | D184: Adelanto | O184: FIN | P184: 7000079319 | Q184: 2019-04-01 | X184: Sidaco | Y184: 0 | Z184: Fin Semana 2 Abril | AA184: JC326 | AB184: 905761-1 | AC184: =Pendientes!$Q184-Pendientes!$B184 -> 43556 | AD184: =VLOOKUP(Pendientes!$AC184,Hoja1!A:B,2,TRUE) -> Mas de 10 días
A185: MJC329 | D185: Adelanto | O185: FIN | P185: 7000079330 | Q185: 2019-04-01 | X185: Sidaco | Y185: 0 | Z185: Fin Semana 2 Abril | AA185: JC329 | AB185: 905787-1 | AC185: =Pendientes!$Q185-Pendientes!$B185 -> 43556 | AD185: =VLOOKUP(Pendientes!$AC185,Hoja1!A:B,2,TRUE) -> Mas de 10 días
A186: MJC339 | D186: Adelanto | O186: FIN | P186: 7000079266/7000079307 | Q186: 2019-04-01 | X186: Sidaco | Y186: 0 | Z186: Fin Semana 1 Abril | AA186: JC339 | AB186: 905764-1 | AC186: =Pendientes!$Q186-Pendientes!$B186 -> 43556 | AD186: =VLOOKUP(Pendientes!$AC186,Hoja1!A:B,2,TRUE) -> Mas de 10 días
A187: MJE008 | C187: Rodrigo | D187: Adelanto | O187: FIN | P187: 7000079584 | Q187: 2019-04-04 | X187: Multiradio | Y187: 0 | Z187: Fin Semana 2 Mayo | AA187: JE008 | AB187: 1059163-1 | AC187: =Pendientes!$Q187-Pendientes!$B187 -> 43559 | AD187: =VLOOKUP(Pendientes!$AC187,Hoja1!A:B,2,TRUE) -> Mas de 10 días
A188: MJS025 | O188: FIN | P188: 7000079144 | Q188: 2019-03-11 | X188: Sidaco | Y188: 0 | Z188: Fin Semana 1 Abril | AA188: JS025 | AB188: 905776-1 | AC188: =Pendientes!$Q188-Pendientes!$B188 -> 43535 | AD188: =VLOOKUP(Pendientes!$AC188,Hoja1!A:B,2,TRUE) -> Mas de 10 días
A189: MJS026 | B189: 2/5/2019 | C189: RICKY | D189: Alta | E189: Si | F189: No | G189: No | H189: No | I189: No | J189: No | K189: No | L189: Si | M189: No | N189: Antena existente ADU4518R7 | O189: FIN | P189: 7000080082 | Q189: 2019-05-06 | T189: ADU4518R7 | U189: Nueva | X189: Sidaco | Y189: Prio 1 | Z189: Semana 3 Mayo | AA189: JS026 | AC189: =Pendientes!$Q189-Pendientes!$B189 -> 4 | AD189: =VLOOKUP(Pendientes!$AC189,Hoja1!A:B,2,TRUE) -> Entre 3 y 5 dias
A190: MJS052 | C190: Barbara | K190: Energia OK | N190: Las RRUS son PARALLEL , llegan en Mayo - Esperar compra Parallel | O190: SIN STOCK | T190: ADU4518R7 | W190: CIS SRL | X190: CIS SRL | Y190: Sin hw | Z190: Semana 1 Junio | AA190: JS052 | AB190: 1263021-1 | AC190: =Pendientes!$Q190-Pendientes!$B190 -> 0 | AD190: =VLOOKUP(Pendientes!$AC190,Hoja1!A:B,2,TRUE) -> en 24hs
A191: MJS099 | C191: Lucrecia | D191: Adelanto | K191: Ingenieria a revision ( Fuerza + Materiales) | N191: se envio a Claudio Creteur para definicion /Según lo indicado por RDA se suma una RRU de 700 , se manda a ingenieria | O191: FIN | P191: 7000079627 | Q191: 2019-04-08 | T191: ADU4518R7 | X191: Sidaco | Y191: 0 | Z191: Pendiente Ingeniería | AA191: JS099 | AC191: =Pendientes!$Q191-Pendientes!$B191 -> 43563 | AD191: =VLOOKUP(Pendientes!$AC191,Hoja1!A:B,2,TRUE) -> Mas de 10 días
A192: MKN284 | K192: la saco Ricky | O192: FIN | P192: 7000079362 | Q192: 2019-03-20 | X192: Guzmán Nacich | Y192: 0 | Z192: Fin Semana 2 Marzo | AA192: KN284 | AB192: 1131845-1 | AC192: =Pendientes!$Q192-Pendientes!$B192 -> 43544 | AD192: =VLOOKUP(Pendientes!$AC192,Hoja1!A:B,2,TRUE) -> Mas de 10 días
A193: MKS047 | B193: 2019-04-30 | C193: Ricky | E193: SI | F193: NO | G193: NO | H193: Incompleto | I193: NO | J193: NO | K193: SI | L193: NO | M193: NO | O193: FIN | P193: 7000080145 | Q193: 2019-05-07 | S193: 0 | T193: Ant existentes + 3 DipB | U193: NUEVA | X193: Sidaco | Y193: Prio 1 | Z193: Semana 3 Mayo | AA193: KS047 | AB193: 1255042-1 | AC193: =Pendientes!$Q193-Pendientes!$B193 -> 7 | AD193: =VLOOKUP(Pendientes!$AC193,Hoja1!A:B,2,TRUE) -> Entre 5 y 10 dias
A194: MKS061 | C194: Ricky | K194: SI | N194: sin stock | O194: SIN STOCK | T194: ODI2-065R16MJJ-GQ ( Hexa grande) | X194: Sidaco | Y194: Prio 2 | Z194: Semana 4 Mayo | AA194: KS061 | AB194: 1255251-1 | AC194: =Pendientes!$Q194-Pendientes!$B194 -> 0 | AD194: =VLOOKUP(Pendientes!$AC194,Hoja1!A:B,2,TRUE) -> en 24hs
A195: MKS165 | C195: Barbara | K195: Energia OK | N195: Ingresaron los planos desde MI 12/04/19 | O195: FIN | P195: 7000079711 | Q195: 2019-04-12 | X195: Sidaco | Y195: 0 | Z195: Fin Semana 4 Abril | AA195: KS165 | AB195: 1255417-1 | AC195: =Pendientes!$Q195-Pendientes!$B195 -> 43567 | AD195: =VLOOKUP(Pendientes!$AC195,Hoja1!A:B,2,TRUE) -> Mas de 10 días
A196: MKS171 | C196: Rodrigo | K196: ok fuerza | N196: se envia mail consulta RDA / OK PLANOS 12/4/19 | O196: FIN | P196: 7000079712 | Q196: 2019-04-12 | T196: "Antena a definir por RDA" | X196: Sidaco | Y196: 0 | Z196: Fin Semana 4 Abril | AA196: KS171 | AB196: 1255418-1 | AC196: =Pendientes!$Q196-Pendientes!$B196 -> 43567 | AD196: =VLOOKUP(Pendientes!$AC196,Hoja1!A:B,2,TRUE) -> Mas de 10 días
A197: MKS238 | C197: Ricky | E197: NO | F197: NO | G197: NO | H197: NO | I197: NO | J197: NO | K197: NO | L197: NO | N197: se cierra hoy | O197: FIN | P197: 7000080230 | Q197: 2019-05-10 | T197: ODI2-065R16MJJ-GQ ( Hexa grande) | X197: Sidaco | Y197: Prio 2 | Z197: Fin Semana 1 Mayo | AA197: KS238 | AB197: 1255392-1 | AC197: =Pendientes!$Q197-Pendientes!$B197 -> 43595 | AD197: =VLOOKUP(Pendientes!$AC197,Hoja1!A:B,2,TRUE) -> Mas de 10 días
A198: MKS244 | C198: Rodrigo | K198: falta energia | N198: Envio de planos de MI 12-4-19 | O198: FIN | P198: 7000079713 | Q198: 2019-04-12 | X198: Sidaco | Y198: 0 | Z198: Fin Semana 4 Abril | AA198: KS244 | AB198: 1135345-1 | AC198: =Pendientes!$Q198-Pendientes!$B198 -> 43567 | AD198: =VLOOKUP(Pendientes!$AC198,Hoja1!A:B,2,TRUE) -> Mas de 10 días
A199: MKS247 | B199: 2019-04-30 | C199: Ricky | E199: SI | F199: NO | G199: NO | H199: Incompleto | I199: NO | J199: NO | K199: SI | L199: NO | M199: NO | O199: FIN | P199: 7000080147 | Q199: 2019-05-07 | S199: 0 | T199: Ant existentes + 3 DipB | U199: Nueva | X199: Sidaco | Y199: Prio 1 | Z199: Semana 3 Mayo | AA199: KS247 | AB199: 1255343-1 | AC199: =Pendientes!$Q199-Pendientes!$B199 -> 7 | AD199: =VLOOKUP(Pendientes!$AC199,Hoja1!A:B,2,TRUE) -> Entre 5 y 10 dias
A200: MKS248 | B200: 2019-04-30 | C200: Ricky | E200: SI | F200: NO | G200: NO | H200: Incompleto | I200: NO | J200: NO | K200: SI | L200: NO | M200: NO | O200: FIN | P200: 7000080148 | Q200: 2019-05-07 | S200: 0 | T200: Ant Existentes + 3 DipA1 + 3 DipB | U200: Existente | X200: Sidaco | Y200: Prio 1 | Z200: Semana 3 Mayo | AA200: KS248 | AB200: 1254903-1 | AC200: =Pendientes!$Q200-Pendientes!$B200 -> 7 | AD200: =VLOOKUP(Pendientes!$AC200,Hoja1!A:B,2,TRUE) -> Entre 5 y 10 dias
A201: MKS298 | C201: Rodrigo | O201: FIN | P201: 7000079631 | Q201: 2019-04-08 | X201: Sidaco | Y201: 0 | Z201: Fin Semana 4 Abril | AA201: KS298 | AB201: 1255534-1 | AC201: =Pendientes!$Q201-Pendientes!$B201 -> 43563 | AD201: =VLOOKUP(Pendientes!$AC201,Hoja1!A:B,2,TRUE) -> Mas de 10 días
A202: MKS428 | B202: 2019-04-30 | C202: Ricky | E202: SI | F202: NO | G202: NO | H202: Incompleto | I202: NO | J202: NO | K202: SI | L202: NO | M202: NO | O202: FIN | P202: 7000080150 | Q202: 2019-05-07 | S202: 0 | T202: ASI-R14 | U202: Existente | X202: Sidaco | Y202: Prio 1 | Z202: Semana 3 Mayo | AA202: KS428 | AB202: 1254949-1 | AC202: =Pendientes!$Q202-Pendientes!$B202 -> 7 | AD202: =VLOOKUP(Pendientes!$AC202,Hoja1!A:B,2,TRUE) -> Entre 5 y 10 dias
A203: MKS457 | B203: 20-04-2019 | C203: Lucrecia | D203: Media | E203: Incompleto | F203: No | G203: No | H203: Incompleto | I203: No | J203: No | K203: Incompleto | L203: No | M203: No | N203: 10/5: sin stock. La ingenieria debe ser modificada, ya que tiene una antena de la cual no hay stock | O203: PENDIENTE RDA | S203: 10/5: sin stock. La ingenieria debe ser modificada, ya que tiene una antena de la cual no hay stock | T203: AIR32 | U203: Nueva | X203: Guzmán Nacich | Y203: Prio 3 | Z203: Semana 1 Junio | AA203: KS457 | AB203: 904338-1 | AC203: =Pendientes!$Q203-Pendientes!$B203 -> -43575 | AD203: =VLOOKUP(Pendientes!$AC203,Hoja1!A:B,2,TRUE) -> 
... 539 more rows

Sheet Hoja1 (hidden)
A1: 0 | B1: en 24hs
A2: 1 | B2: en 24hs
A3: 2 | B3: en 24hs
A4: 2 | B4: Entre 24 y 72Hs
A5: 3 | B5: Entre 24 y 72Hs
A6: 3 | B6: Entre 3 y 5 dias
A7: 5 | B7: Entre 3 y 5 dias
A8: 5 | B8: Entre 5 y 10 dias
A9: 10 | B9: Entre 5 y 10 dias
A10: 10 | B10: Mas de 10 días

Sheet Tablas dinamicas
A1: Etiquetas de fila | B1: Cuenta de NODO | D1: ESTADO | E1: (Varios elementos) | G1: ESTADO | H1: (Varios elementos) | J1: ESTADO | K1: (Varios elementos)
A2: FIN | B2: 524 | M2: FECHA_DE_INGRESO | N2: (Varios elementos)
A3: FIN-A | B3: 54 | D3: Cuenta de FECHA_FIN | G3: Etiquetas de fila | H3: Cuenta de NODO | J3: Etiquetas de fila | K3: Cuenta de NODO | M3: ESTADO | N3: (Varios elementos)
A4: Total general | B4: 578 | D4: 576 | G4: <4/2/2019 o (en blanco) | H4: 3 | J4: Sidaco | K4: 198
G5: 18/2/2019 - 24/2/2019 | H5: 3 | J5: CIS SRL | K5: 136 | M5: Etiquetas de fila | N5: Cuenta de NODO
G6: 4/3/2019 - 10/3/2019 | H6: 6 | J6: Guzmán Nacich | K6: 66 | M6: en 24hs | N6: 89
G7: 11/3/2019 - 17/3/2019 | H7: 42 | J7: Huawei | K7: 52 | M7: Entre 24 y 72Hs | N7: 1
G8: 18/3/2019 - 24/3/2019 | H8: 28 | J8: PEM | K8: 57 | M8: Entre 3 y 5 dias | N8: 40
G9: 25/3/2019 - 31/3/2019 | H9: 62 | J9: Multiradio | K9: 37 | M9: Entre 5 y 10 dias | N9: 68
G10: 1/4/2019 - 7/4/2019 | H10: 63 | J10: Ericsson | K10: 22 | M10: Mas de 10 días | N10: 31
G11: 8/4/2019 - 14/4/2019 | H11: 86 | J11: Tesur | K11: 5 | M11: Total general | N11: 229
G12: 15/4/2019 - 21/4/2019 | H12: 13 | J12: Telxius | K12: 5
G13: 22/4/2019 - 28/4/2019 | H13: 45 | J13: Total general | K13: 578
G14: 29/4/2019 - 5/5/2019 | H14: 85
G15: 6/5/2019 - 12/5/2019 | H15: 126
G16: 13/5/2019 - 15/5/2019 | H16: 17
G17: Total general | H17: 579

Sheet Dashboard
A2: Total de sitios con Solpe | B2: =GETPIVOTDATA("FECHA_FIN",'Tablas dinamicas'!$D$3) -> 576 | E2: Top por semana | F2: Cantidad | G2: Grafico | I2: Top Contratista | J2: Cantidad | K2: Grafico
E3: ='Tablas dinamicas'!G4 -> <4/2/2019 o (en blanco) | F3: =GETPIVOTDATA("NODO",'Tablas dinamicas'!$G$3,"FECHA_FIN",E3) -> 3 | G3: =REPT("|",F3/MAX($F$3:$F$12)*100) -> ||| | I3: ='Tablas dinamicas'!J4 -> Sidaco | J3: =GETPIVOTDATA("NODO",'Tablas dinamicas'!$J$3,"Contratista",I3) -> 198 | K3: =REPT("|",J3/MAX($J$3:$J$12)*100) -> ||||||||||||||||||||||||||||||||||||||||||||||||||||||||||||||||||||||||||||||||||||||||||||||||||||
E4: ='Tablas dinamicas'!G5 -> 18/2/2019 - 24/2/2019 | F4: =GETPIVOTDATA("NODO",'Tablas dinamicas'!$G$3,"FECHA_FIN",E4) -> 3 | G4: =REPT("|",F4/MAX($F$3:$F$12)*100) -> ||| | I4: ='Tablas dinamicas'!J5 -> CIS SRL | J4: =GETPIVOTDATA("NODO",'Tablas dinamicas'!$J$3,"Contratista",I4) -> 136 | K4: =REPT("|",J4/MAX($J$3:$J$12)*100) -> ||||||||||||||||||||||||||||||||||||||||||||||||||||||||||||||||||||
E5: ='Tablas dinamicas'!G6 -> 4/3/2019 - 10/3/2019 | F5: =GETPIVOTDATA("NODO",'Tablas dinamicas'!$G$3,"FECHA_FIN",E5) -> 6 | G5: |||||| | I5: ='Tablas dinamicas'!J6 -> Guzmán Nacich | J5: =GETPIVOTDATA("NODO",'Tablas dinamicas'!$J$3,"Contratista",I5) -> 66 | K5: |||||||||||||||||||||||||||||||||
E6: ='Tablas dinamicas'!G7 -> 11/3/2019 - 17/3/2019 | F6: =GETPIVOTDATA("NODO",'Tablas dinamicas'!$G$3,"FECHA_FIN",E6) -> 42 | G6: |||||||||||||||||||||||||||||||||||||||||||||||| | I6: ='Tablas dinamicas'!J7 -> Huawei | J6: =GETPIVOTDATA("NODO",'Tablas dinamicas'!$J$3,"Contratista",I6) -> 52 | K6: ||||||||||||||||||||||||||
E7: ='Tablas dinamicas'!G8 -> 18/3/2019 - 24/3/2019 | F7: =GETPIVOTDATA("NODO",'Tablas dinamicas'!$G$3,"FECHA_FIN",E7) -> 28 | G7: |||||||||||||||||||||||||||||||| | I7: ='Tablas dinamicas'!J8 -> PEM | J7: =GETPIVOTDATA("NODO",'Tablas dinamicas'!$J$3,"Contratista",I7) -> 57 | K7: ||||||||||||||||||||||||||||
E8: ='Tablas dinamicas'!G9 -> 25/3/2019 - 31/3/2019 | F8: =GETPIVOTDATA("NODO",'Tablas dinamicas'!$G$3,"FECHA_FIN",E8) -> 62 | G8: |||||||||||||||||||||||||||||||||||||||||||||||||||||||||||||||||||||||| | I8: ='Tablas dinamicas'!J9 -> Multiradio | J8: =GETPIVOTDATA("NODO",'Tablas dinamicas'!$J$3,"Contratista",I8) -> 37 | K8: ||||||||||||||||||
E9: ='Tablas dinamicas'!G10 -> 1/4/2019 - 7/4/2019 | F9: =GETPIVOTDATA("NODO",'Tablas dinamicas'!$G$3,"FECHA_FIN",E9) -> 63 | G9: ||||||||||||||||||||||||||||||||||||||||||||||||||||||||||||||||||||||||| | I9: ='Tablas dinamicas'!J10 -> Ericsson | J9: =GETPIVOTDATA("NODO",'Tablas dinamicas'!$J$3,"Contratista",I9) -> 22 | K9: |||||||||||
E10: ='Tablas dinamicas'!G11 -> 8/4/2019 - 14/4/2019 | F10: =GETPIVOTDATA("NODO",'Tablas dinamicas'!$G$3,"FECHA_FIN",E10) -> 86 | G10: |||||||||||||||||||||||||||||||||||||||||||||||||||||||||||||||||||||||||||||||||||||||||||||||||||| | I10: ='Tablas dinamicas'!J11 -> Tesur | J10: =GETPIVOTDATA("NODO",'Tablas dinamicas'!$J$3,"Contratista",I10) -> 5 | K10: ||
E11: ='Tablas dinamicas'!G12 -> 15/4/2019 - 21/4/2019 | F11: =GETPIVOTDATA("NODO",'Tablas dinamicas'!$G$3,"FECHA_FIN",E11) -> 13 | G11: ||||||||||||||| | I11: ='Tablas dinamicas'!J12 -> Telxius | J11: =GETPIVOTDATA("NODO",'Tablas dinamicas'!$J$3,"Contratista",I11) -> 5 | K11: ||
E12: ='Tablas dinamicas'!G13 -> 22/4/2019 - 28/4/2019 | F12: =GETPIVOTDATA("NODO",'Tablas dinamicas'!$G$3,"FECHA_FIN",E12) -> 45 | G12: ||||||||||||||||||||||||||||||||||||||||||||||||||||
E13: ='Tablas dinamicas'!G14 -> 29/4/2019 - 5/5/2019 | F13: =GETPIVOTDATA("NODO",'Tablas dinamicas'!$G$3,"FECHA_FIN",E13) -> 85 | G13: =REPT("|",F13/MAX($F$3:$F$12)*100) -> ||||||||||||||||||||||||||||||||||||||||||||||||||||||||||||||||||||||||||||||||||||||||||||||||||
E14: ='Tablas dinamicas'!G15 -> 6/5/2019 - 12/5/2019 | F14: =GETPIVOTDATA("NODO",'Tablas dinamicas'!$G$3,"FECHA_FIN",E14) -> 126 | G14: =REPT("|",F14/MAX($F$3:$F$12)*100) -> ||||||||||||||||||||||||||||||||||||||||||||||||||||||||||||||||||||||||||||||||||||||||||||||||||||||||||||||||||||||||||||||||||||||||||||||||||
E15: ='Tablas dinamicas'!G16 -> 13/5/2019 - 15/5/2019 | F15: =GETPIVOTDATA("NODO",'Tablas dinamicas'!$G$3,"FECHA_FIN",E15) -> 17 | G15: =REPT("|",F15/MAX($F$3:$F$12)*100) -> |||||||||||||||||||

Sheet Hoja3 (hidden)
F7: Sitio | G7: Nodo
F8: BS043 | G8: OBS043 | H8: ASI4517R3v06
F9: BS104 | G9: OBS104 | H9: ASI4517R3v06
F10: BS195 | G10: OBS195 | H10: ASI4517R3v06
F11: CN266 | G11: OCN266 | H11: ASI4517R3v06
F12: KN073 | G12: OKN073 | H12: =VLOOKUP(G12,Pendientes!A:N,14,0) -> 10/05 DWG cargado en asignación Tesur Estructura verificada - a verificar estructura por cambio de antena AIR32 x HEXA
F13: KO024 | G13: OKO024 | H13: ASI4517R3v06
F14: KS050 | G14: NKS050 | H14: =VLOOKUP(G14,Pendientes!A:N,14,0) -> a verificar estructura por cambio de antena AIR32 x HEXA
F15: KS050 | G15: OKS050 | H15: =VLOOKUP(G15,Pendientes!A:N,14,0) -> a verificar estructura por cambio de antena AIR32 x HEXA
F16: KS457 | G16: MKS457 | H16: ASI4517R3v06
F17: KS457 | G17: OKS457 | H17: ASI4517R3v06

Sheet Combos (hidden)
A1: NODO | B1: FECHA_DE_INGRESO | C1: PROPIETARIO | D1: PRIORIDAD | E1: DWG_BPM | F1: DWG_MAIL | G1: DWG_IU | H1: MATERIALES_BPM | I1: MATERIALES_MAIL | J1: MATERIALES_IU | K1: FUERZA_BPM | L1: FUERZA_MAIL | M1: FUERZA_IU | N1: OBSERVACIONES_INGRESO | O1: ESTADO | P1: SOLPE_FUEGO | Q1: FECHA_FIN | R1: HORAS_ESTIMADAS | S1: OBSERVACIONES_FINALES | T1: ANTENA_TIPO | U1: ENERGIA
C2: Barbara | D2: Adelanto | E2: Incompleto | F2: Incompleto | G2: Incompleto | H2: Incompleto | I2: Incompleto | J2: Incompleto | K2: Incompleto | L2: Incompleto | M2: Incompleto | O2: A REASIGNAR CONTRATA
C3: CarolinaH | D3: Alta | E3: No | F3: No | G3: No | H3: No | I3: No | J3: No | K3: No | L3: No | M3: No | O3: DOING
C4: CarolinaL | D4: Baja | E4: Si | F4: Si | G4: Si | H4: Si | I4: Si | J4: Si | K4: Si | L4: Si | M4: Si | O4: FIN
C5: Cristian | D5: Media | O5: FIN-A
C6: Lucrecia | O6: PENDIENTE ENERGIA
C7: Noelia | O7: PENDIENTE INGENIERIA
C8: Ricky | O8: PENDIENTE INGENIERIA + ENERGIA
C9: Rodrigo | O9: PENDIENTE RDA
O10: SIN DATOS
O11: SIN STOCK
O12: SITIOS
O13: STOP
O14: TO DO
